{"text_format":"1","workbook":"xlsx","n_sheets":4,"sheets":["Select Scenario","New Cluster - New vCSA","New Cluster - Existing vCSA","Expand Cluster"],"not_rendered":{"charts":0,"images":1,"macros":1,"external_links":0,"defined_names":24,"comments":0,"pivot_tables":0},"unopened":[],"bounds":{"document_bytes":16777216,"sheet_cells":100000,"rows_first":2000,"rows_last":500,"rows_between":2000,"halvings":0,"cell_chars":16384,"cell_head_chars":4096},"cells_cut":0,"cells_raw":0,"read":"whole","date_system":"1900"}

{"sheet":"Select Scenario","index":0,"n_rows":14,"n_cols":15,"rows_kept":14,"cut":false,"hidden":false,"merged":[[0,0,1,5],[5,2,5,4],[8,4,8,7]]}
["CONFIGURATION FILE FOR THE LENOVO THINKAGILE VX DEPLOYER"]
[]
[]
[]
[]
[null,null,"Select Scenario:",null,null,"New Cluster - Existing vCSA"]
[]
[]
[]
[]
[]
[null,null,null,null,null,"=INDIRECT(ADDRESS(1,1,,,INDIRECT(\"F6\")))",null,null,null,null,null,null,null,null,"New Cluster - New vCSA"]
[null,null,null,null,null,null,null,null,null,null,null,null,null,null,"New Cluster - Existing vCSA"]
[null,null,null,null,null,null,null,null,null,null,null,null,null,null,"Expand Cluster"]

{"sheet":"New Cluster - New vCSA","index":1,"n_rows":574,"n_cols":25,"rows_kept":574,"cut":false,"hidden":false,"merged":[[8,2,8,4],[8,6,8,10],[0,0,1,5],[10,2,10,4],[10,6,10,10],[18,2,18,4],[18,6,18,10],[21,2,21,5],[21,6,21,10],[2,9,5,9],[5,0,5,7],[7,2,7,5],[7,6,7,10],[15,2,15,4],[15,6,15,10],[13,6,13,10],[19,6,19,10],[22,2,22,4],[22,6,22,10],[16,2,16,4],[16,6,16,10],[17,2,17,4],[17,6,17,10],[11,2,11,4],[11,6,11,10],[13,2,13,5],[14,2,14,5],[14,6,14,10],[19,2,19,4],[26,2,26,4],[26,6,26,10],[29,1,29,10],[30,2,30,4],[23,2,23,4],[23,6,23,10],[24,2,24,4],[24,6,24,10],[25,2,25,4],[25,6,25,10],[30,8,30,10],[34,2,34,4],[35,6,35,7],[36,2,36,4],[36,7,36,10],[31,2,31,4],[32,2,32,4],[33,2,33,4],[31,8,31,10],[32,8,32,10],[33,8,33,10],[34,8,34,10],[42,16,42,20],[44,2,44,3],[44,9,44,10],[45,2,45,3],[45,5,45,6],[45,9,45,10],[37,2,37,4],[37,7,37,10],[38,2,38,4],[38,7,38,10],[42,1,42,10],[44,5,44,6],[48,2,48,3],[48,5,48,6],[48,9,48,10],[49,2,49,3],[49,5,49,6],[49,9,49,10],[46,2,46,3],[46,5,46,6],[46,9,46,10],[47,2,47,3],[47,5,47,6],[47,9,47,10],[52,2,52,3],[52,5,52,6],[52,9,52,10],[53,2,53,3],[53,5,53,6],[53,9,53,10],[50,2,50,3],[50,5,50,6],[50,9,50,10],[51,2,51,3],[51,5,51,6],[51,9,51,10],[56,2,56,3],[56,5,56,6],[56,9,56,10],[57,2,57,3],[57,5,57,6],[57,9,57,10],[54,2,54,3],[54,5,54,6],[54,9,54,10],[55,2,55,3],[55,5,55,6],[55,9,55,10],[60,2,60,3],[60,5,60,6],[60,9,60,10],[61,2,61,3],[61,5,61,6],[61,9,61,10],[58,2,58,3],[58,5,58,6],[58,9,58,10],[59,2,59,3],[59,5,59,6],[59,9,59,10],[64,2,64,3],[64,5,64,6],[64,9,64,10],[65,2,65,3],[65,5,65,6],[65,9,65,10],[62,2,62,3],[62,5,62,6],[62,9,62,10],[63,2,63,3],[63,5,63,6],[63,9,63,10],[68,2,68,3],[68,5,68,6],[68,9,68,10],[69,2,69,3],[69,5,69,6],[69,9,69,10],[66,2,66,3],[66,5,66,6],[66,9,66,10],[67,2,67,3],[67,5,67,6],[67,9,67,10],[72,2,72,3],[72,5,72,6],[72,9,72,10],[73,2,73,3],[73,5,73,6],[73,9,73,10],[70,2,70,3],[70,5,70,6],[70,9,70,10],[71,2,71,3],[71,5,71,6],[71,9,71,10],[76,2,76,3],[76,5,76,6],[76,9,76,10],[77,2,77,3],[77,5,77,6],[77,9,77,10],[74,2,74,3],[74,5,74,6],[74,9,74,10],[75,2,75,3],[75,5,75,6],[75,9,75,10],[80,2,80,3],[80,5,80,6],[80,9,80,10],[81,2,81,3],[81,5,81,6],[81,9,81,10],[78,2,78,3],[78,5,78,6],[78,9,78,10],[79,2,79,3],[79,5,79,6],[79,9,79,10],[84,2,84,3],[84,5,84,6],[84,9,84,10],[85,2,85,3],[85,5,85,6],[85,9,85,10],[82,2,82,3],[82,5,82,6],[82,9,82,10],[83,2,83,3],[83,5,83,6],[83,9,83,10],[88,2,88,3],[88,5,88,6],[88,9,88,10],[89,2,89,3],[89,5,89,6],[89,9,89,10],[86,2,86,3],[86,5,86,6],[86,9,86,10],[87,2,87,3],[87,5,87,6],[87,9,87,10],[92,2,92,3],[92,5,92,6],[92,9,92,10],[93,2,93,3],[93,5,93,6],[93,9,93,10],[90,2,90,3],[90,5,90,6],[90,9,90,10],[91,2,91,3],[91,5,91,6],[91,9,91,10],[96,2,96,3],[96,5,96,6],[96,9,96,10],[97,2,97,3],[97,5,97,6],[97,9,97,10],[94,2,94,3],[94,5,94,6],[94,9,94,10],[95,2,95,3],[95,5,95,6],[95,9,95,10],[100,2,100,3],[100,5,100,6],[100,9,100,10],[101,2,101,3],[101,5,101,6],[101,9,101,10],[98,2,98,3],[98,5,98,6],[98,9,98,10],[99,2,99,3],[99,5,99,6],[99,9,99,10],[108,2,108,3],[108,5,108,6],[108,9,108,10],[112,9,115,9],[9,2,9,4],[9,6,9,10],[106,2,106,3],[106,5,106,6],[106,9,106,10],[107,2,107,3],[107,5,107,6],[107,9,107,10],[104,2,104,3],[104,5,104,6],[104,9,104,10],[105,2,105,3],[105,5,105,6],[105,9,105,10],[102,2,102,3],[102,5,102,6],[102,9,102,10],[103,2,103,3],[103,5,103,6],[103,9,103,10]]}
["NEW CONFIGURATION FILE"]
[null,null,null,null,null,null,null,null,null,"Export JSON File"]
[]
[]
[]
["          Global Settings"]
[]
[null,null,"vCenter Settings",null,null,null,"Description"]
[null,null,"Installation Type",null,null,"new","Install a new vSAN cluster in a new vCenter Server instance. A minimum 3 physical hosts are required to form a new cluster."]
[null,null,"SSO Domain",null,null,null,"Name of the vCenter Single Sign-On domain to which users are authenticated when logging in to the cluster.",null,null,null,null,{"$f":"AND(RegExpMatch(F10, \"^([a-zA-Z0-9]([-a-zA-Z0-9]{0,61}[a-zA-Z0-9])?\\.)?([a-zA-Z0-9]{1,2}([-a-zA-Z0-9]{0,252}[a-zA-Z0-9])?)\\.([a-zA-Z]{2,63})$\"), LEN(F10) <= 255)","v":false}]
[null,null,"vCenter FQDN",null,null,null,"Fully Qualified Domain Name for the new vCenter Server.",null,null,null,null,{"$f":"AND(RegExpMatch(F11, \"^([a-zA-Z0-9]([a-zA-Z0-9\\-]{0,61}[a-zA-Z0-9])?\\.)([a-zA-Z0-9]([a-zA-Z0-9\\-]{0,61}[a-zA-Z0-9])?\\.)+[a-zA-Z]+$\"), LEN(F11) <= 255)","v":false}]
[null,null,"Administrator Username",null,null,{"$f":"\"administrator@\"&F10","v":"administrator@"},"Administrative account for the new vCenter Server."]
[]
[null,null,"Install LXCI",null,null,null,"Click column B to install Lenovo XClarity Integrator."]
[null,null,"LXCI Settings",null,null,null,"Description"]
[null,null,"LXCI Hostname",null,null,null,"Hostname of the LXCI instance.",null,null,null,null,{"$f":"AND(RegExpMatch(F16, \"^[a-zA-Z0-9][a-zA-Z0-9-]+[a-zA-Z0-9]$\"), LEN(F16) <= 255)","v":false}]
[null,null,"LXCI User",null,null,"admin","Administrative account for the new LXCI instance."]
[null,null,"XCC Access IP Address",null,null,null,"The XCC Network IP address. It is optional if the controllers are accessible over the ESXi Management network.",null,null,null,null,{"$f":"AND(IPV4Address(F18),  NOT(ISBLANK(F18)), NOT(ISNUMBER(SEARCH(\" \",F18))))","v":false}]
[null,null,"XCC Access VLAN Id",null,null,null,"VLAN ID used to configure the XCC management port group in the distributed virtual switch.",null,null,null,null,{"$f":"AND(F19 >= 1, F19 <= 4094, RegExpMatch(F19, \"^[0-9]*$\"),  NOT(ISBLANK(F19)), NOT(ISNUMBER(SEARCH(\" \",F19))))","v":false}]
[null,null,"Start vLCM Cluster Remediation",null,null,null,"Click column B to to verify that all hosts are compliant with the vLCM image.  The process is triggered after the cluster has been configured."]
[]
[null,null,"Cluster Settings",null,null,null,"Description"]
[null,null,"Organization Name",null,null,null,"Name of your organization.",null,null,null,null,{"$f":"AND(RegExpMatch(F23, \"^[a-zA-Z0-9\\-\\_]{0,255}$\"), NOT(ISBLANK(F23)))","v":false}]
[null,null,"Region Name",null,null,null,"Region where the cluster is located.",null,null,null,null,{"$f":"AND(RegExpMatch(F24, \"^[a-zA-Z0-9\\-\\_]{0,255}$\"), NOT(ISBLANK(F24)))","v":false}]
[null,null,"Datacenter Name",null,null,null,"The name of the vCenter datacenter.",null,null,null,null,{"$f":"AND(RegExpMatch(F25, \"^[a-zA-Z0-9\\-\\_]{0,255}$\"), NOT(ISBLANK(F25)))","v":false}]
[null,null,"Site Name",null,null,null,"Site where the cluster is located.",null,null,null,null,{"$f":"AND(RegExpMatch(F26, \"^[a-zA-Z0-9\\-\\_]{0,255}$\"), NOT(ISBLANK(F26)))","v":false}]
[null,null,"vSAN Cluster Name",null,null,null,"The name of the vSAN cluster.",null,null,null,null,{"$f":"AND(RegExpMatch(F27, \"^[a-zA-Z0-9\\-\\_]{0,255}$\"), NOT(ISBLANK(F27)))","v":false}]
[]
[]
["          Hosts","Cluster Networks"]
[null,null,"Network Type",null,null,"IP Gateway","Netmask","VLAN ID","Description"]
[null,null,"ESXi Management Network",null,null,null,null,null,"Network used for ESXi management traffic.",null,null,{"$f":"GatewayValidation(F32)","v":false},{"$f":"Subnet_Mask(G32)","v":false},{"$f":"CheckIfDifferentSubnet(F32, G32)","v":false},{"$f":"CheckVlanManag","v":true}]
[null,null,"XCC Network",null,null,null,null,null,"Network used to for XCC management traffic. The IP Gateway is optional.",null,null,{"$f":"GatewayValidation(F33)","v":false},{"$f":"Subnet_Mask(G33)","v":false},{"$f":"CheckIfDifferentSubnet(F33, G33)","v":false}]
[null,null,"vSAN Network",null,null,null,null,null,"Network used for vSAN data traffic. The IP Gateway is optional.",null,null,{"$f":"GatewayValidation(F34)","v":false},{"$f":"Subnet_Mask(G34)","v":false},{"$f":"CheckIfDifferentSubnet(F34, G34)","v":false},{"$f":"CheckVlanVsan","v":true}]
[null,null,"vMotion Network",null,null,null,null,null,"Network used vMotion traffic. The IP Gateway is optional.",null,null,{"$f":"GatewayValidation(F35)","v":false},{"$f":"Subnet_Mask(G35)","v":false},{"$f":"CheckIfDifferentSubnet(F35, G35)","v":false},{"$f":"CheckVlanVmotion","v":true}]
[]
[null,null,"Type",null,null,"DNS","NTP","Description"]
[null,null,"Primary",null,null,null,null,"Primary DNS and NTP servers used by vCenter and the ESXi hosts.",null,null,null,{"$f":"AND(IPV4Address(F38),  NOT(ISBLANK(F38)), NOT(ISNUMBER(SEARCH(\" \",F38))))","v":false},{"$f":"OR(AND(RegExpMatch(G38,\"^([a-zA-Z0-9]([a-zA-Z0-9\\-]{0,61}[a-zA-Z0-9])?\\.)([a-zA-Z0-9]([a-zA-Z0-9\\-]{0,61}[a-zA-Z0-9])?\\.)+[a-zA-Z]+$\"),LEN(G38)<=255),AND(IPV4Address(G38),NOT(ISBLANK(G38)),NOT(ISNUMBER(SEARCH(\" \",G38)))))","v":false}]
[null,null,"Secondary (Optional)",null,null,null,null,"Secondary DNS and NTP servers by vCenter and the ESXi hosts.",null,null,null,{"$f":"CheckDNSOptionalNew","v":false},{"$f":"OR(AND(RegExpMatch(G39,\"^([a-zA-Z0-9]([a-zA-Z0-9\\-]{0,61}[a-zA-Z0-9])?\\.)([a-zA-Z0-9]([a-zA-Z0-9\\-]{0,61}[a-zA-Z0-9])?\\.)+[a-zA-Z]+$\"),LEN(G39)<=255),AND(IPV4Address(G39),NOT(ISBLANK(G39)),NOT(ISNUMBER(SEARCH(\" \",G39)))))","v":false}]
[]
[]
[null,null,null,null,null,null,null,null,null,null,null,null,null,"The "]
[null,"          Hosts"]
[]
[null,null,null,null,"Serial Number","ESXi Hostname",null,"XCC IP Address","vSAN IP Address","vMotion IP Address",null,"serial nr","esxi host","xcc ip addrs","vsan ip addr","vmotion ip addr"]
[null,null,1,null,null,null,null,null,null,null,null,{"$f":"AND(Serial_Number(E46),  NOT(ISBLANK(E46)), NOT(ISNUMBER(SEARCH(\" \",E46))))","v":false},{"$f":"AND(RegExpMatch(F46, \"^[a-zA-Z0-9][a-zA-Z0-9-]+[a-zA-Z0-9]$\"), LEN(F46) <= 255, Unique_ESXi_Hostname(F46))","v":false},{"$f":"IPAddressValidation(H46)","v":false},{"$f":"IPAddressValidation(I46)","v":false},{"$f":"IPAddressValidation(J46)","v":false}]
[null,null,2,null,null,null,null,null,null,null,null,false,false,{"$f":"IPAddressValidation(H47)","v":false},{"$f":"IPAddressValidation(I47)","v":false},{"$f":"IPAddressValidation(J47)","v":false}]
[null,null,3,null,null,null,null,null,null,null,null,false,false,{"$f":"IPAddressValidation(H48)","v":false},{"$f":"IPAddressValidation(I48)","v":false},{"$f":"IPAddressValidation(J48)","v":false}]
[null,null,4,null,null,null,null,null,null,null,null,false,false,{"$f":"IPAddressValidation(H49)","v":false},{"$f":"IPAddressValidation(I49)","v":false},{"$f":"IPAddressValidation(J49)","v":false}]
[null,null,5,null,null,null,null,null,null,null,null,false,false,{"$f":"IPAddressValidation(H50)","v":false},{"$f":"IPAddressValidation(I50)","v":false},{"$f":"IPAddressValidation(J50)","v":false}]
[null,null,6,null,null,null,null,null,null,null,null,false,false,{"$f":"IPAddressValidation(H51)","v":false},{"$f":"IPAddressValidation(I51)","v":false},{"$f":"IPAddressValidation(J51)","v":false}]
[null,null,7,null,null,null,null,null,null,null,null,{"$f":"AND(Serial_Number(E52),  NOT(ISBLANK(E52)), NOT(ISNUMBER(SEARCH(\" \",E52))))","v":false},false,{"$f":"IPAddressValidation(H52)","v":false},{"$f":"IPAddressValidation(I52)","v":false},{"$f":"IPAddressValidation(J52)","v":false}]
[null,null,8,null,null,null,null,null,null,null,null,false,false,{"$f":"IPAddressValidation(H53)","v":false},{"$f":"IPAddressValidation(I53)","v":false},{"$f":"IPAddressValidation(J53)","v":false}]
[null,null,9,null,null,null,null,null,null,null,null,false,false,{"$f":"IPAddressValidation(H54)","v":false},{"$f":"IPAddressValidation(I54)","v":false},{"$f":"IPAddressValidation(J54)","v":false}]
[null,null,10,null,null,null,null,null,null,null,null,false,false,{"$f":"IPAddressValidation(H55)","v":false},{"$f":"IPAddressValidation(I55)","v":false},{"$f":"IPAddressValidation(J55)","v":false}]
[null,null,11,null,null,null,null,null,null,null,null,false,false,{"$f":"IPAddressValidation(H56)","v":false},{"$f":"IPAddressValidation(I56)","v":false},{"$f":"IPAddressValidation(J56)","v":false}]
[null,null,12,null,null,null,null,null,null,null,null,false,false,{"$f":"IPAddressValidation(H57)","v":false},{"$f":"IPAddressValidation(I57)","v":false},{"$f":"IPAddressValidation(J57)","v":false}]
[null,null,13,null,null,null,null,null,null,null,null,false,false,{"$f":"IPAddressValidation(H58)","v":false},{"$f":"IPAddressValidation(I58)","v":false},{"$f":"IPAddressValidation(J58)","v":false}]
[null,null,14,null,null,null,null,null,null,null,null,false,false,{"$f":"IPAddressValidation(H59)","v":false},{"$f":"IPAddressValidation(I59)","v":false},{"$f":"IPAddressValidation(J59)","v":false}]
[null,null,15,null,null,null,null,null,null,null,null,false,false,{"$f":"IPAddressValidation(H60)","v":false},{"$f":"IPAddressValidation(I60)","v":false},{"$f":"IPAddressValidation(J60)","v":false}]
[null,null,16,null,null,null,null,null,null,null,null,false,false,{"$f":"IPAddressValidation(H61)","v":false},{"$f":"IPAddressValidation(I61)","v":false},{"$f":"IPAddressValidation(J61)","v":false}]
[null,null,17,null,null,null,null,null,null,null,null,false,false,{"$f":"IPAddressValidation(H62)","v":false},{"$f":"IPAddressValidation(I62)","v":false},{"$f":"IPAddressValidation(J62)","v":false}]
[null,null,18,null,null,null,null,null,null,null,null,false,false,{"$f":"IPAddressValidation(H63)","v":false},{"$f":"IPAddressValidation(I63)","v":false},{"$f":"IPAddressValidation(J63)","v":false}]
[null,null,19,null,null,null,null,null,null,null,null,false,false,{"$f":"IPAddressValidation(H64)","v":false},{"$f":"IPAddressValidation(I64)","v":false},{"$f":"IPAddressValidation(J64)","v":false}]
[null,null,20,null,null,null,null,null,null,null,null,false,false,{"$f":"IPAddressValidation(H65)","v":false},{"$f":"IPAddressValidation(I65)","v":false},{"$f":"IPAddressValidation(J65)","v":false}]
[null,null,21,null,null,null,null,null,null,null,null,false,false,{"$f":"IPAddressValidation(H66)","v":false},{"$f":"IPAddressValidation(I66)","v":false},{"$f":"IPAddressValidation(J66)","v":false}]
[null,null,22,null,null,null,null,null,null,null,null,false,false,{"$f":"IPAddressValidation(H67)","v":false},{"$f":"IPAddressValidation(I67)","v":false},{"$f":"IPAddressValidation(J67)","v":false}]
[null,null,23,null,null,null,null,null,null,null,null,false,false,{"$f":"IPAddressValidation(H68)","v":false},{"$f":"IPAddressValidation(I68)","v":false},{"$f":"IPAddressValidation(J68)","v":false}]
[null,null,24,null,null,null,null,null,null,null,null,false,false,{"$f":"IPAddressValidation(H69)","v":false},{"$f":"IPAddressValidation(I69)","v":false},{"$f":"IPAddressValidation(J69)","v":false}]
[null,null,25,null,null,null,null,null,null,null,null,false,false,{"$f":"IPAddressValidation(H70)","v":false},{"$f":"IPAddressValidation(I70)","v":false},{"$f":"IPAddressValidation(J70)","v":false}]
[null,null,26,null,null,null,null,null,null,null,null,false,false,{"$f":"IPAddressValidation(H71)","v":false},{"$f":"IPAddressValidation(I71)","v":false},{"$f":"IPAddressValidation(J71)","v":false}]
[null,null,27,null,null,null,null,null,null,null,null,false,false,{"$f":"IPAddressValidation(H72)","v":false},{"$f":"IPAddressValidation(I72)","v":false},{"$f":"IPAddressValidation(J72)","v":false}]
[null,null,28,null,null,null,null,null,null,null,null,false,false,{"$f":"IPAddressValidation(H73)","v":false},{"$f":"IPAddressValidation(I73)","v":false},{"$f":"IPAddressValidation(J73)","v":false}]
[null,null,29,null,null,null,null,null,null,null,null,false,false,{"$f":"IPAddressValidation(H74)","v":false},{"$f":"IPAddressValidation(I74)","v":false},{"$f":"IPAddressValidation(J74)","v":false}]
[null,null,30,null,null,null,null,null,null,null,null,false,false,{"$f":"IPAddressValidation(H75)","v":false},{"$f":"IPAddressValidation(I75)","v":false},{"$f":"IPAddressValidation(J75)","v":false}]
[null,null,31,null,null,null,null,null,null,null,null,false,false,{"$f":"IPAddressValidation(H76)","v":false},{"$f":"IPAddressValidation(I76)","v":false},{"$f":"IPAddressValidation(J76)","v":false}]
[null,null,32,null,null,null,null,null,null,null,null,false,false,{"$f":"IPAddressValidation(H77)","v":false},{"$f":"IPAddressValidation(I77)","v":false},{"$f":"IPAddressValidation(J77)","v":false}]
[null,null,33,null,null,null,null,null,null,null,null,false,{"$f":"AND(RegExpMatch(F78, \"^[a-zA-Z0-9][a-zA-Z0-9-]+[a-zA-Z0-9]$\"), LEN(F78) <= 255, Unique_ESXi_Hostname(F78))","v":false},{"$f":"IPAddressValidation(H78)","v":false},{"$f":"IPAddressValidation(I78)","v":false},{"$f":"IPAddressValidation(J78)","v":false}]
[null,null,34,null,null,null,null,null,null,null,null,false,false,{"$f":"IPAddressValidation(H79)","v":false},{"$f":"IPAddressValidation(I79)","v":false},{"$f":"IPAddressValidation(J79)","v":false}]
[null,null,35,null,null,null,null,null,null,null,null,false,false,{"$f":"IPAddressValidation(H80)","v":false},{"$f":"IPAddressValidation(I80)","v":false},{"$f":"IPAddressValidation(J80)","v":false}]
[null,null,36,null,null,null,null,null,null,null,null,false,false,{"$f":"IPAddressValidation(H81)","v":false},{"$f":"IPAddressValidation(I81)","v":false},{"$f":"IPAddressValidation(J81)","v":false}]
[null,null,37,null,null,null,null,null,null,null,null,false,false,{"$f":"IPAddressValidation(H82)","v":false},{"$f":"IPAddressValidation(I82)","v":false},{"$f":"IPAddressValidation(J82)","v":false}]
[null,null,38,null,null,null,null,null,null,null,null,false,false,{"$f":"IPAddressValidation(H83)","v":false},{"$f":"IPAddressValidation(I83)","v":false},{"$f":"IPAddressValidation(J83)","v":false}]
[null,null,39,null,null,null,null,null,null,null,null,false,false,{"$f":"IPAddressValidation(H84)","v":false},{"$f":"IPAddressValidation(I84)","v":false},{"$f":"IPAddressValidation(J84)","v":false}]
[null,null,40,null,null,null,null,null,null,null,null,false,false,{"$f":"IPAddressValidation(H85)","v":false},{"$f":"IPAddressValidation(I85)","v":false},{"$f":"IPAddressValidation(J85)","v":false}]
[null,null,41,null,null,null,null,null,null,null,null,false,false,{"$f":"IPAddressValidation(H86)","v":false},{"$f":"IPAddressValidation(I86)","v":false},{"$f":"IPAddressValidation(J86)","v":false}]
[null,null,42,null,null,null,null,null,null,null,null,false,false,{"$f":"IPAddressValidation(H87)","v":false},{"$f":"IPAddressValidation(I87)","v":false},{"$f":"IPAddressValidation(J87)","v":false}]
[null,null,43,null,null,null,null,null,null,null,null,false,false,{"$f":"IPAddressValidation(H88)","v":false},{"$f":"IPAddressValidation(I88)","v":false},{"$f":"IPAddressValidation(J88)","v":false}]
[null,null,44,null,null,null,null,null,null,null,null,false,false,{"$f":"IPAddressValidation(H89)","v":false},{"$f":"IPAddressValidation(I89)","v":false},{"$f":"IPAddressValidation(J89)","v":false}]
[null,null,45,null,null,null,null,null,null,null,null,false,false,{"$f":"IPAddressValidation(H90)","v":false},{"$f":"IPAddressValidation(I90)","v":false},{"$f":"IPAddressValidation(J90)","v":false}]
[null,null,46,null,null,null,null,null,null,null,null,false,false,{"$f":"IPAddressValidation(H91)","v":false},{"$f":"IPAddressValidation(I91)","v":false},{"$f":"IPAddressValidation(J91)","v":false}]
[null,null,47,null,null,null,null,null,null,null,null,false,false,{"$f":"IPAddressValidation(H92)","v":false},{"$f":"IPAddressValidation(I92)","v":false},{"$f":"IPAddressValidation(J92)","v":false}]
[null,null,48,null,null,null,null,null,null,null,null,false,false,{"$f":"IPAddressValidation(H93)","v":false},{"$f":"IPAddressValidation(I93)","v":false},{"$f":"IPAddressValidation(J93)","v":false}]
[null,null,49,null,null,null,null,null,null,null,null,false,false,{"$f":"IPAddressValidation(H94)","v":false},{"$f":"IPAddressValidation(I94)","v":false},{"$f":"IPAddressValidation(J94)","v":false}]
[null,null,50,null,null,null,null,null,null,null,null,false,false,{"$f":"IPAddressValidation(H95)","v":false},{"$f":"IPAddressValidation(I95)","v":false},{"$f":"IPAddressValidation(J95)","v":false}]
[null,null,51,null,null,null,null,null,null,null,null,{"$f":"AND(Serial_Number(E96),  NOT(ISBLANK(E96)), NOT(ISNUMBER(SEARCH(\" \",E96))))","v":false},false,{"$f":"IPAddressValidation(H96)","v":false},{"$f":"IPAddressValidation(I96)","v":false},{"$f":"IPAddressValidation(J96)","v":false}]
[null,null,52,null,null,null,null,null,null,null,null,false,false,{"$f":"IPAddressValidation(H97)","v":false},{"$f":"IPAddressValidation(I97)","v":false},{"$f":"IPAddressValidation(J97)","v":false}]
[null,null,53,null,null,null,null,null,null,null,null,false,false,{"$f":"IPAddressValidation(H98)","v":false},{"$f":"IPAddressValidation(I98)","v":false},{"$f":"IPAddressValidation(J98)","v":false}]
[null,null,54,null,null,null,null,null,null,null,null,false,false,{"$f":"IPAddressValidation(H99)","v":false},{"$f":"IPAddressValidation(I99)","v":false},{"$f":"IPAddressValidation(J99)","v":false}]
[null,null,55,null,null,null,null,null,null,null,null,false,false,{"$f":"IPAddressValidation(H100)","v":false},{"$f":"IPAddressValidation(I100)","v":false},{"$f":"IPAddressValidation(J100)","v":false}]
[null,null,56,null,null,null,null,null,null,null,null,false,false,{"$f":"IPAddressValidation(H101)","v":false},{"$f":"IPAddressValidation(I101)","v":false},{"$f":"IPAddressValidation(J101)","v":false}]
[null,null,57,null,null,null,null,null,null,null,null,false,false,{"$f":"IPAddressValidation(H102)","v":false},{"$f":"IPAddressValidation(I102)","v":false},{"$f":"IPAddressValidation(J102)","v":false}]
[null,null,58,null,null,null,null,null,null,null,null,false,false,{"$f":"IPAddressValidation(H103)","v":false},{"$f":"IPAddressValidation(I103)","v":false},{"$f":"IPAddressValidation(J103)","v":false}]
[null,null,59,null,null,null,null,null,null,null,null,false,false,{"$f":"IPAddressValidation(H104)","v":false},{"$f":"IPAddressValidation(I104)","v":false},{"$f":"IPAddressValidation(J104)","v":false}]
[null,null,60,null,null,null,null,null,null,null,null,false,false,{"$f":"IPAddressValidation(H105)","v":false},{"$f":"IPAddressValidation(I105)","v":false},{"$f":"IPAddressValidation(J105)","v":false},null,null,null,null,null,null,null,null," r esxi02.thinkagile.local  254.255.255.250 172.29.7.2 172.24.0.2 s esxi03.thinkagile.local  254.255.255.251 172.29.7.3 172.24.0.3 gg esxi04.thinkagile.local  254.255.255.252 172.29.7.4 172.24.0.4  esxi01.thinkagile.local  1.1.1.1                                                                                                                                                                                                                                                                                                                                                               bb esxi11.thinkagile.local           r esxi02.thinkagile.local  254.255.255.250 172.29.7.2 172.24.0.2 s esxi03.thinkagile.local  254.255.255.251 172.29.7.3 172.24.0.3 gg esxi04.thinkagile.local  254.255.255.252 172.29.7.4 172.24.0.4  esxi01.thinkagile.local  1.1.1.1                                                                                                                                                                                                                                                                                                                                                               bb esxi11.thinkagile.local           r esxi02.thinkagile.local  254.255.255.250 172.29.7.2 172.24.0.2 s esxi03.thinkagile.local  254.255.255.251 172.29.7.3 172.24.0.3 gg esxi04.thinkagile.local  254.255.255.252 172.29.7.4 172.24.0.4  esxi01.thinkagile.local  1.1.1.1                                                                                                                                                                                                                                                                                                                                                               bb esxi11.thinkagile.local          "]
[null,null,61,null,null,null,null,null,null,null,null,false,false,{"$f":"IPAddressValidation(H106)","v":false},{"$f":"IPAddressValidation(I106)","v":false},{"$f":"IPAddressValidation(J106)","v":false}]
[null,null,62,null,null,null,null,null,null,null,null,false,false,{"$f":"IPAddressValidation(H107)","v":false},{"$f":"IPAddressValidation(I107)","v":false},{"$f":"IPAddressValidation(J107)","v":false}]
[null,null,63,null,null,null,null,null,null,null,null,false,false,{"$f":"IPAddressValidation(H108)","v":false},{"$f":"IPAddressValidation(I108)","v":false},{"$f":"IPAddressValidation(J108)","v":false}]
[null,null,64,null,null,null,null,null,null,null,null,false,false,{"$f":"IPAddressValidation(H109)","v":false},{"$f":"IPAddressValidation(I109)","v":false},{"$f":"IPAddressValidation(J109)","v":false}]
[]
[]
[]
[null,null,null,null,null,null,null,null,null,"Export JSON file"]
[]
[]
[]
[null,null,null,null,null,null,null,null,null,"Export JSON File"]
[]
[]
[]
[]
[]
[]
[]
[]
[]
[]
[]
[]
[]
[]
[]
[]
[]
[]
[]
[]
[]
[]
[]
[]
[]
[]
[]
[]
[]
[]
[]
[]
[]
[]
[]
[]
[]
[]
[]
[]
[]
[]
[]
[]
[]
[]
[]
[]
[]
[]
[]
[]
[]
[]
[]
[]
[]
[]
[]
[]
[]
[]
[]
[]
[]
[]
[]
[]
[]
[]
[]
[]
[]
[]
[]
[]
[]
[]
[]
[]
[]
[]
[null,null,null,null,null,null,"{ "]
[null,null,null,null,null,null,"  \"globalSettings\": {"]
[null,null,null,null,null,null,"    \"vcenterSettings\": { "]
[null,null,null,null,null,null,"      \"installationType\": \"new\",",null,{"$f":"F9","v":"new"}]
[null,null,null,null,null,null,"      \"adminUsername\": \"administrator@vsphere.local\",",null,{"$f":"F12","v":"administrator@"}]
[null,null,null,null,null,null,"      \"fqdn\": \"dev.thinkagile.local\",",null,{"$f":"F11","v":0}]
[null,null,null,null,null,null,"      \"ssoDomain\": \"vsphere.local\"",null,{"$f":"F10","v":0}]
[null,null,null,null,null,null,"    }, "]
[null,null,null,null,null,null,"    \"clusterSettings\": {"]
[null,null,null,null,null,null,"      \"orgName\": \"Lenovo\",",null,{"$f":"F23","v":0}]
[null,null,null,null,null,null,"      \"regionName\": \"EMEA\",",null,{"$f":"F24","v":0}]
[null,null,null,null,null,null,"      \"datacenterName\": \"DC\",",null,{"$f":"F25","v":0}]
[null,null,null,null,null,null,"      \"siteName\": \"ro\",",null,{"$f":"F26","v":0}]
[null,null,null,null,null,null,"      \"vSanClusterName\": \"cl\"",null,{"$f":"F27","v":0}]
[null,null,null,null,null,null,"    }, "]
[null,null,null,null,null,null,"    \"dns\": ["]
[null,null,null,null,null,null,"      \"172.29.6.201\",",null,{"$f":"F38","v":0}]
[null,null,null,null,null,null,"      \"172.29.6.203\"",null,{"$f":"F39","v":0}]
[null,null,null,null,null,null,"     ], "]
[null,null,null,null,null,null,"     \"ntp\": ["]
[null,null,null,null,null,null,"      \"172.29.6.202\",",null,{"$f":"G38","v":0}]
[null,null,null,null,null,null,"      \"172.29.6.204\"",null,{"$f":"G39","v":0}]
[null,null,null,null,null,null,"    ],"]
[null,null,null,null,null,null,"    \"clusterNetworks\": {"]
[null,null,null,null,null,null,"      \"esxiManagementNetwork\": {"]
[null,null,null,null,null,null,"        \"gateway\": \"172.29.6.201\",",null,{"$f":"F32","v":0}]
[null,null,null,null,null,null,"        \"netmask\": \"255.255.0.0\",",null,{"$f":"G32","v":0}]
[null,null,null,null,null,null,"        \"vlan\": \"1\"",null,{"$f":"H32","v":0}]
[null,null,null,null,null,null,"     },"]
[null,null,null,null,null,null,"      \"xccNetwork\": {"]
[null,null,null,null,null,null,"        \"gateway\": \"10.249.101.0\",",null,{"$f":"F33","v":0}]
[null,null,null,null,null,null,"        \"netmask\": \"255.255.0.0\"",null,{"$f":"G33","v":0}]
[]
[null,null,null,null,null,null,"     },"]
[null,null,null,null,null,null,"      \"vsanNetwork\": {"]
[null,null,null,null,null,null,"        \"gateway\": \"192.168.170.1\",",null,{"$f":"F34","v":0}]
[null,null,null,null,null,null,"        \"netmask\": \"255.255.255.0\",",null,{"$f":"G34","v":0}]
[null,null,null,null,null,null,"        \"vlan\": \"2\"",null,{"$f":"H34","v":0}]
[null,null,null,null,null,null,"     },"]
[null,null,null,null,null,null,"      \"vmotionNetwork\": {"]
[null,null,null,null,null,null,"        \"gateway\": \"192.168.178.2\",",null,{"$f":"F35","v":0}]
[null,null,null,null,null,null,"        \"netmask\": \"255.255.255.0\",",null,{"$f":"G35","v":0}]
[null,null,null,null,null,null,"        \"vlan\": \"3\"",null,{"$f":"H35","v":0}]
[null,null,null,null,null,null,"     }"]
[null,null,null,null,null,null,"    },"]
[null,null,null,null,null,null,"    \"lxciSettings\": {"]
[null,null,null,null,null,null,"      \"lxciFQDN\": \"lxci2.dev.thinkagile.local\",",null,{"$f":"F16","v":0}]
[null,null,null,null,null,null,"      \"lxciUser\": \"admin\",",null,{"$f":"F17","v":"admin"}]
[null,null,null,null,null,null,"      \"xccAccessIpAddress\": \"172.29.7.170\",",null,{"$f":"F18","v":0}]
[null,null,null,null,null,null,"      \"xccAccessVlanId\": \"1\",",null,{"$f":"F19","v":0}]
[null,null,null,null,null,null,"      \"remediation\": false"]
[null,null,null,null,null,null,"    }"]
[null,null,null,null,null,null,"   },"]
[null,null,null,null,null,null,"   \"hosts\": { "]
[null,null,null,null,null,null,"      \"a\": {",null," a esxo  10.249.101.1 192.168.170.2 192.168.178.1 b aaa  10.249.101.2 192.168.170.3 192.168.178.3 c bbb  10.249.101.3 192.168.170.4 192.168.178.4 d ccc  10.249.101.4 192.168.170.5 192.168.178.5 e ddd  10.249.101.5 192.168.170.6 192.168.178.26 f eee  10.249.101.6 192.168.170.7 192.168.178.27 g fff  10.249.101.7 192.168.170.8 192.168.178.6 h ggg  10.249.101.8 192.168.170.9 192.168.178.7 i hhh  10.249.101.9 192.168.170.10 192.168.178.8 j iii  10.249.101.10 192.168.170.11 192.168.178.9 k jjj  10.249.101.11 192.168.170.12 192.168.178.10 l kkk  10.249.101.12 192.168.170.17 192.168.178.11 m lll  10.249.101.13 192.168.170.13 192.168.178.12 n mmm  10.249.101.144 192.168.170.14 192.168.178.13 o nnn  10.249.101.15 192.168.170.15 192.168.178.14 p ooo  10.249.101.16 192.168.170.16 192.168.178.15 q ppp  10.249.101.17 192.168.170.18 192.168.178.16 r qqqq  10.249.101.18 192.168.170.19 192.168.178.17 s rrr  10.249.101.19 192.168.170.20 192.168.178.18 t sss  10.249.101.20 192.168.170.21 192.168.178.19 u tttt  10.249.101.21 192.168.170.22 192.168.178.20 v uuu  10.249.101.22 192.168.170.23 192.168.178.21 w vvv  10.249.101.23 192.168.170.24 192.168.178.22 x wwww  10.249.101.24 192.168.170.25 192.168.178.23 y xxx  10.249.101.25 192.168.170.26 192.168.178.24 z yyy  10.249.101.36 192.168.170.27 192.168.178.25 aa zzz  10.249.101.26 192.168.170.28 192.168.178.28 bb 12211  10.249.101.27 192.168.170.29 192.168.178.29 cc 212121  10.249.101.28 192.168.170.30 192.168.178.30 dd 4342  10.249.101.29 192.168.170.31 192.168.178.31 ee vfdvds  10.249.101.30 192.168.170.32 192.168.178.32 ff vgrhytj  10.249.101.31 192.168.170.33 192.168.178.33 gg ujtyy  10.249.101.32 192.168.170.34 192.168.178.34 hh aaaa  10.249.101.33 192.168.170.35 192.168.178.35 ii jytf  10.249.101.34 192.168.170.36 192.168.178.36 jj hgf  10.249.101.35 192.168.170.37 192.168.178.37 kk sdcds  10.249.101.37 192.168.170.38 192.168.178.38 ll jur  10.249.101.38 192.168.170.39 192.168.178.39 mm sdt  10.249.101.39 192.168.170.40 192.168.178.40 nn qwww  10.249.101.40 192.168.170.41 192.168.178.41 oo kkkdseww  10.249.101.41 192.168.170.42 192.168.178.42 pp ffd  10.249.101.42 192.168.170.43 192.168.178.43 qq eew  10.249.101.43 192.168.170.44 192.168.178.44 rr xcxxc  10.249.101.44 192.168.170.45 192.168.178.45 ss cxvd  10.249.101.45 192.168.170.46 192.168.178.46 tt vcvfd  10.249.101.46 192.168.170.47 192.168.178.47 uu ngmu  10.249.101.47 192.168.170.48 192.168.178.48 vv khjh  10.249.101.48 192.168.170.49 192.168.178.49 ww mjhm  10.249.101.49 192.168.170.50 192.168.178.50 xx oioi  10.249.101.50 192.168.170.51 192.168.178.51 yy oiooo  10.249.101.51 192.168.170.52 192.168.178.52 zz yhhyy  10.249.101.52 192.168.170.53 192.168.178.53 aaa jjyyy  10.249.101.53 192.168.170.54 192.168.178.54 bbb jujuju  10.249.101.54 192.168.170.55 192.168.178.55 ccc yuut  10.249.101.55 192.168.170.56 192.168.178.56 ddd dwedc  10.249.101.56 192.168.170.57 192.168.178.57 eee cdssd  10.249.101.57 192.168.170.58 192.168.178.58 fff cdsdcs  10.249.101.58 192.168.170.59 192.168.178.59 ggg dwdew  10.249.101.59 192.168.170.60 192.168.178.60 hhh efrfs  10.249.101.60 192.168.170.61 192.168.178.61 asdsad asdsa  10.249.101.61 192.168.170.62 192.168.178.62 eeeeee aaaaaaddd  10.249.101.62 192.168.170.63 192.168.178.63 rrrrrrr dsdsdsdsds  10.249.101.63 192.168.170.64 192.168.178.64 ttttttt fdfdfdfdfd  10.249.101.64 192.168.170.65 192.168.178.65 a esxo  10.249.101.1 192.168.170.2 192.168.178.1 b aaa  10.249.101.2 192.168.170.3 192.168.178.3 c bbb  10.249.101.3 192.168.170.4 192.168.178.4 d ccc  10.249.101.4 192.168.170.5 192.168.178.5 e ddd  10.249.101.5 192.168.170.6 192.168.178.26 f eee  10.249.101.6 192.168.170.7 192.168.178.27 g fff  10.249.101.7 192.168.170.8 192.168.178.6 h ggg  10.249.101.8 192.168.170.9 192.168.178.7 i hhh  10.249.101.9 192.168.170.10 192.168.178.8 j iii  10.249.101.10 192.168.170.11 192.168.178.9 k jjj  10.249.101.11 192.168.170.12 192.168.178.10 l kkk  10.249.101.12 192.168.170.17 192.168.178.11 m lll  10.249.101.13 192.168.170.13 192.168.178.12 n mmm  10.249.101.144 192.168.170.14 192.168.178.13 o nnn  10.249.101.15 192.168.170.15 192.168.178.14 p ooo  10.249.101.16 192.168.170.16 192.168.178.15 q ppp  10.249.101.17 192.168.170.18 192.168.178.16 r qqqq  10.249.101.18 192.168.170.19 192.168.178.17 s rrr  10.249.101.19 192.168.170.20 192.168.178.18 t sss  10.249.101.20 192.168.170.21 192.168.178.19 u tttt  10.249.101.21 192.168.170.22 192.168.178.20 v uuu  10.249.101.22 192.168.170.23 192.168.178.21 w vvv  10.249.101.23 192.168.170.24 192.168.178.22 x wwww  10.249.101.24 192.168.170.25 192.168.178.23 y xxx  10.249.101.25 192.168.170.26 192.168.178.24 z yyy  10.249.101.36 192.168.170.27 192.168.178.25 aa zzz  10.249.101.26 192.168.170.28 192.168.178.28 bb 12211  10.249.101.27 192.168.170.29 192.168.178.29 cc 212121  10.249.101.28 192.168.170.30 192.168.178.30 dd 4342  10.249.101.29 192.168.170.31 192.168.178.31 ee vfdvds  10.249.101.30 192.168.170.32 192.168.178.32 ff vgrhytj  10.249.101.31 192.168.170.33 192.168.178.33 gg ujtyy  10.249.101.32 192.168.170.34 192.168.178.34 hh aaaa  10.249.101.33 192.168.170.35 192.168.178.35 ii jytf  10.249.101.34 192.168.170.36 192.168.178.36 jj hgf  10.249.101.35 192.168.170.37 192.168.178.37 kk sdcds  10.249.101.37 192.168.170.38 192.168.178.38 ll jur  10.249.101.38 192.168.170.39 192.168.178.39 mm sdt  10.249.101.39 192.168.170.40 192.168.178.40 nn qwww  10.249.101.40 192.168.170.41 192.168.178.41 oo kkkdseww  10.249.101.41 192.168.170.42 192.168.178.42 pp ffd  10.249.101.42 192.168.170.43 192.168.178.43 qq eew  10.249.101.43 192.168.170.44 192.168.178.44 rr xcxxc  10.249.101.44 192.168.170.45 192.168.178.45 ss cxvd  10.249.101.45 192.168.170.46 192.168.178.46 tt vcvfd  10.249.101.46 192.168.170.47 192.168.178.47 uu ngmu  10.249.101.47 192.168.170.48 192.168.178.48 vv khjh  10.249.101.48 192.168.170.49 192.168.178.49 ww mjhm  10.249.101.49 192.168.170.50 192.168.178.50 xx oioi  10.249.101.50 192.168.170.51 192.168.178.51 yy oiooo  10.249.101.51 192.168.170.52 192.168.178.52 zz yhhyy  10.249.101.52 192.168.170.53 192.168.178.53 aaa jjyyy  10.249.101.53 192.168.170.54 192.168.178.54 bbb jujuju  10.249.101.54 192.168.170.55 192.168.178.55 ccc yuut  10.249.101.55 192.168.170.56 192.168.178.56 ddd dwedc  10.249.101.56 192.168.170.57 192.168.178.57 eee cdssd  10.249.101.57 192.168.170.58 192.168.178.58 fff cdsdcs  10.249.101.58 192.168.170.59 192.168.178.59 ggg dwdew  10.249.101.59 192.168.170.60 192.168.178.60 hhh efrfs  10.249.101.60 192.168.170.61 192.168.178.61 asdsad asdsa  10.249.101.61 192.168.170.62 192.168.178.62 eeeeee aaaaaaddd  10.249.101.62 192.168.170.63 192.168.178.63 rrrrrrr dsdsdsdsds  10.249.101.63 192.168.170.64 192.168.178.64 ttttttt fdfdfdfdfd  10.249.101.64 192.168.170.65 192.168.178.65"]
[null,null,null,null,null,null,"          \"esxiHostname\": \"esxo.dev.thinkagile.local\","]
[null,null,null,null,null,null,"          \"xccIpAddress\": \"10.249.101.1\","]
[null,null,null,null,null,null,"          \"vsanIpAddress\": \"192.168.170.2\","]
[null,null,null,null,null,null,"          \"vmotionIpAddress\": \"192.168.178.1\"\r\n  },"]
[null,null,null,null,null,null,"      \"b\": {"]
[null,null,null,null,null,null,"          \"esxiHostname\": \"aaa.dev.thinkagile.local\","]
[null,null,null,null,null,null,"          \"xccIpAddress\": \"10.249.101.2\","]
[null,null,null,null,null,null,"          \"vsanIpAddress\": \"192.168.170.3\","]
[null,null,null,null,null,null,"          \"vmotionIpAddress\": \"192.168.178.3\"\r\n  },"]
[null,null,null,null,null,null,"      \"c\": {"]
[null,null,null,null,null,null,"          \"esxiHostname\": \"bbb.dev.thinkagile.local\","]
[null,null,null,null,null,null,"          \"xccIpAddress\": \"10.249.101.3\","]
[null,null,null,null,null,null,"          \"vsanIpAddress\": \"192.168.170.4\","]
[null,null,null,null,null,null,"          \"vmotionIpAddress\": \"192.168.178.4\"\r\n  },"]
[null,null,null,null,null,null,"      \"d\": {"]
[null,null,null,null,null,null,"          \"esxiHostname\": \"ccc.dev.thinkagile.local\","]
[null,null,null,null,null,null,"          \"xccIpAddress\": \"10.249.101.4\","]
[null,null,null,null,null,null,"          \"vsanIpAddress\": \"192.168.170.5\","]
[null,null,null,null,null,null,"          \"vmotionIpAddress\": \"192.168.178.5\"\r\n  },"]
[null,null,null,null,null,null,"      \"e\": {"]
[null,null,null,null,null,null,"          \"esxiHostname\": \"ddd.dev.thinkagile.local\","]
[null,null,null,null,null,null,"          \"xccIpAddress\": \"10.249.101.5\","]
[null,null,null,null,null,null,"          \"vsanIpAddress\": \"192.168.170.6\","]
[null,null,null,null,null,null,"          \"vmotionIpAddress\": \"192.168.178.26\"\r\n  },"]
[null,null,null,null,null,null,"      \"f\": {"]
[null,null,null,null,null,null,"          \"esxiHostname\": \"eee.dev.thinkagile.local\","]
[null,null,null,null,null,null,"          \"xccIpAddress\": \"10.249.101.6\","]
[null,null,null,null,null,null,"          \"vsanIpAddress\": \"192.168.170.7\","]
[null,null,null,null,null,null,"          \"vmotionIpAddress\": \"192.168.178.27\"\r\n  },"]
[null,null,null,null,null,null,"      \"g\": {"]
[null,null,null,null,null,null,"          \"esxiHostname\": \"fff.dev.thinkagile.local\","]
[null,null,null,null,null,null,"          \"xccIpAddress\": \"10.249.101.7\","]
[null,null,null,null,null,null,"          \"vsanIpAddress\": \"192.168.170.8\","]
[null,null,null,null,null,null,"          \"vmotionIpAddress\": \"192.168.178.6\"\r\n  },"]
[null,null,null,null,null,null,"      \"h\": {"]
[null,null,null,null,null,null,"          \"esxiHostname\": \"ggg.dev.thinkagile.local\","]
[null,null,null,null,null,null,"          \"xccIpAddress\": \"10.249.101.8\","]
[null,null,null,null,null,null,"          \"vsanIpAddress\": \"192.168.170.9\","]
[null,null,null,null,null,null,"          \"vmotionIpAddress\": \"192.168.178.7\"\r\n  },"]
[null,null,null,null,null,null,"      \"i\": {"]
[null,null,null,null,null,null,"          \"esxiHostname\": \"hhh.dev.thinkagile.local\","]
[null,null,null,null,null,null,"          \"xccIpAddress\": \"10.249.101.9\","]
[null,null,null,null,null,null,"          \"vsanIpAddress\": \"192.168.170.10\","]
[null,null,null,null,null,null,"          \"vmotionIpAddress\": \"192.168.178.8\"\r\n  },"]
[null,null,null,null,null,null,"      \"j\": {"]
[null,null,null,null,null,null,"          \"esxiHostname\": \"iii.dev.thinkagile.local\","]
[null,null,null,null,null,null,"          \"xccIpAddress\": \"10.249.101.10\","]
[null,null,null,null,null,null,"          \"vsanIpAddress\": \"192.168.170.11\","]
[null,null,null,null,null,null,"          \"vmotionIpAddress\": \"192.168.178.9\"\r\n  },"]
[null,null,null,null,null,null,"      \"k\": {"]
[null,null,null,null,null,null,"          \"esxiHostname\": \"jjj.dev.thinkagile.local\","]
[null,null,null,null,null,null,"          \"xccIpAddress\": \"10.249.101.11\","]
[null,null,null,null,null,null,"          \"vsanIpAddress\": \"192.168.170.12\","]
[null,null,null,null,null,null,"          \"vmotionIpAddress\": \"192.168.178.10\"\r\n  },"]
[null,null,null,null,null,null,"      \"l\": {"]
[null,null,null,null,null,null,"          \"esxiHostname\": \"kkk.dev.thinkagile.local\","]
[null,null,null,null,null,null,"          \"xccIpAddress\": \"10.249.101.12\","]
[null,null,null,null,null,null,"          \"vsanIpAddress\": \"192.168.170.17\","]
[null,null,null,null,null,null,"          \"vmotionIpAddress\": \"192.168.178.11\"\r\n  },"]
[null,null,null,null,null,null,"      \"m\": {"]
[null,null,null,null,null,null,"          \"esxiHostname\": \"lll.dev.thinkagile.local\","]
[null,null,null,null,null,null,"          \"xccIpAddress\": \"10.249.101.13\","]
[null,null,null,null,null,null,"          \"vsanIpAddress\": \"192.168.170.13\","]
[null,null,null,null,null,null,"          \"vmotionIpAddress\": \"192.168.178.12\"\r\n  },"]
[null,null,null,null,null,null,"      \"n\": {"]
[null,null,null,null,null,null,"          \"esxiHostname\": \"mmm.dev.thinkagile.local\","]
[null,null,null,null,null,null,"          \"xccIpAddress\": \"10.249.101.144\","]
[null,null,null,null,null,null,"          \"vsanIpAddress\": \"192.168.170.14\","]
[null,null,null,null,null,null,"          \"vmotionIpAddress\": \"192.168.178.13\"\r\n  },"]
[null,null,null,null,null,null,"      \"o\": {"]
[null,null,null,null,null,null,"          \"esxiHostname\": \"nnn.dev.thinkagile.local\","]
[null,null,null,null,null,null,"          \"xccIpAddress\": \"10.249.101.15\","]
[null,null,null,null,null,null,"          \"vsanIpAddress\": \"192.168.170.15\","]
[null,null,null,null,null,null,"          \"vmotionIpAddress\": \"192.168.178.14\"\r\n  },"]
[null,null,null,null,null,null,"      \"p\": {"]
[null,null,null,null,null,null,"          \"esxiHostname\": \"ooo.dev.thinkagile.local\","]
[null,null,null,null,null,null,"          \"xccIpAddress\": \"10.249.101.16\","]
[null,null,null,null,null,null,"          \"vsanIpAddress\": \"192.168.170.16\","]
[null,null,null,null,null,null,"          \"vmotionIpAddress\": \"192.168.178.15\"\r\n  },"]
[null,null,null,null,null,null,"      \"q\": {"]
[null,null,null,null,null,null,"          \"esxiHostname\": \"ppp.dev.thinkagile.local\","]
[null,null,null,null,null,null,"          \"xccIpAddress\": \"10.249.101.17\","]
[null,null,null,null,null,null,"          \"vsanIpAddress\": \"192.168.170.18\","]
[null,null,null,null,null,null,"          \"vmotionIpAddress\": \"192.168.178.16\"\r\n  },"]
[null,null,null,null,null,null,"      \"r\": {"]
[null,null,null,null,null,null,"          \"esxiHostname\": \"qqqq.dev.thinkagile.local\","]
[null,null,null,null,null,null,"          \"xccIpAddress\": \"10.249.101.18\","]
[null,null,null,null,null,null,"          \"vsanIpAddress\": \"192.168.170.19\","]
[null,null,null,null,null,null,"          \"vmotionIpAddress\": \"192.168.178.17\"\r\n  },"]
[null,null,null,null,null,null,"      \"s\": {"]
[null,null,null,null,null,null,"          \"esxiHostname\": \"rrr.dev.thinkagile.local\","]
[null,null,null,null,null,null,"          \"xccIpAddress\": \"10.249.101.19\","]
[null,null,null,null,null,null,"          \"vsanIpAddress\": \"192.168.170.20\","]
[null,null,null,null,null,null,"          \"vmotionIpAddress\": \"192.168.178.18\"\r\n  },"]
[null,null,null,null,null,null,"      \"t\": {"]
[null,null,null,null,null,null,"          \"esxiHostname\": \"sss.dev.thinkagile.local\","]
[null,null,null,null,null,null,"          \"xccIpAddress\": \"10.249.101.20\","]
[null,null,null,null,null,null,"          \"vsanIpAddress\": \"192.168.170.21\","]
[null,null,null,null,null,null,"          \"vmotionIpAddress\": \"192.168.178.19\"\r\n  },"]
[null,null,null,null,null,null,"      \"u\": {"]
[null,null,null,null,null,null,"          \"esxiHostname\": \"tttt.dev.thinkagile.local\","]
[null,null,null,null,null,null,"          \"xccIpAddress\": \"10.249.101.21\","]
[null,null,null,null,null,null,"          \"vsanIpAddress\": \"192.168.170.22\","]
[null,null,null,null,null,null,"          \"vmotionIpAddress\": \"192.168.178.20\"\r\n  },"]
[null,null,null,null,null,null,"      \"v\": {"]
[null,null,null,null,null,null,"          \"esxiHostname\": \"uuu.dev.thinkagile.local\","]
[null,null,null,null,null,null,"          \"xccIpAddress\": \"10.249.101.22\","]
[null,null,null,null,null,null,"          \"vsanIpAddress\": \"192.168.170.23\","]
[null,null,null,null,null,null,"          \"vmotionIpAddress\": \"192.168.178.21\"\r\n  },"]
[null,null,null,null,null,null,"      \"w\": {"]
[null,null,null,null,null,null,"          \"esxiHostname\": \"vvv.dev.thinkagile.local\","]
[null,null,null,null,null,null,"          \"xccIpAddress\": \"10.249.101.23\","]
[null,null,null,null,null,null,"          \"vsanIpAddress\": \"192.168.170.24\","]
[null,null,null,null,null,null,"          \"vmotionIpAddress\": \"192.168.178.22\"\r\n  },"]
[null,null,null,null,null,null,"      \"x\": {"]
[null,null,null,null,null,null,"          \"esxiHostname\": \"wwww.dev.thinkagile.local\","]
[null,null,null,null,null,null,"          \"xccIpAddress\": \"10.249.101.24\","]
[null,null,null,null,null,null,"          \"vsanIpAddress\": \"192.168.170.25\","]
[null,null,null,null,null,null,"          \"vmotionIpAddress\": \"192.168.178.23\"\r\n  },"]
[null,null,null,null,null,null,"      \"y\": {"]
[null,null,null,null,null,null,"          \"esxiHostname\": \"xxx.dev.thinkagile.local\","]
[null,null,null,null,null,null,"          \"xccIpAddress\": \"10.249.101.25\","]
[null,null,null,null,null,null,"          \"vsanIpAddress\": \"192.168.170.26\","]
[null,null,null,null,null,null,"          \"vmotionIpAddress\": \"192.168.178.24\"\r\n  },"]
[null,null,null,null,null,null,"      \"z\": {"]
[null,null,null,null,null,null,"          \"esxiHostname\": \"yyy.dev.thinkagile.local\","]
[null,null,null,null,null,null,"          \"xccIpAddress\": \"10.249.101.36\","]
[null,null,null,null,null,null,"          \"vsanIpAddress\": \"192.168.170.27\","]
[null,null,null,null,null,null,"          \"vmotionIpAddress\": \"192.168.178.25\"\r\n  },"]
[null,null,null,null,null,null,"      \"aa\": {"]
[null,null,null,null,null,null,"          \"esxiHostname\": \"zzz.dev.thinkagile.local\","]
[null,null,null,null,null,null,"          \"xccIpAddress\": \"10.249.101.26\","]
[null,null,null,null,null,null,"          \"vsanIpAddress\": \"192.168.170.28\","]
[null,null,null,null,null,null,"          \"vmotionIpAddress\": \"192.168.178.28\"\r\n  },"]
[null,null,null,null,null,null,"      \"bb\": {"]
[null,null,null,null,null,null,"          \"esxiHostname\": \"12211.dev.thinkagile.local\","]
[null,null,null,null,null,null,"          \"xccIpAddress\": \"10.249.101.27\","]
[null,null,null,null,null,null,"          \"vsanIpAddress\": \"192.168.170.29\","]
[null,null,null,null,null,null,"          \"vmotionIpAddress\": \"192.168.178.29\"\r\n  },"]
[null,null,null,null,null,null,"      \"cc\": {"]
[null,null,null,null,null,null,"          \"esxiHostname\": \"212121.dev.thinkagile.local\","]
[null,null,null,null,null,null,"          \"xccIpAddress\": \"10.249.101.28\","]
[null,null,null,null,null,null,"          \"vsanIpAddress\": \"192.168.170.30\","]
[null,null,null,null,null,null,"          \"vmotionIpAddress\": \"192.168.178.30\"\r\n  },"]
[null,null,null,null,null,null,"      \"dd\": {"]
[null,null,null,null,null,null,"          \"esxiHostname\": \"4342.dev.thinkagile.local\","]
[null,null,null,null,null,null,"          \"xccIpAddress\": \"10.249.101.29\","]
[null,null,null,null,null,null,"          \"vsanIpAddress\": \"192.168.170.31\","]
[null,null,null,null,null,null,"          \"vmotionIpAddress\": \"192.168.178.31\"\r\n  },"]
[null,null,null,null,null,null,"      \"ee\": {"]
[null,null,null,null,null,null,"          \"esxiHostname\": \"vfdvds.dev.thinkagile.local\","]
[null,null,null,null,null,null,"          \"xccIpAddress\": \"10.249.101.30\","]
[null,null,null,null,null,null,"          \"vsanIpAddress\": \"192.168.170.32\","]
[null,null,null,null,null,null,"          \"vmotionIpAddress\": \"192.168.178.32\"\r\n  },"]
[null,null,null,null,null,null,"      \"ff\": {"]
[null,null,null,null,null,null,"          \"esxiHostname\": \"vgrhytj.dev.thinkagile.local\","]
[null,null,null,null,null,null,"          \"xccIpAddress\": \"10.249.101.31\","]
[null,null,null,null,null,null,"          \"vsanIpAddress\": \"192.168.170.33\","]
[null,null,null,null,null,null,"          \"vmotionIpAddress\": \"192.168.178.33\"\r\n  },"]
[null,null,null,null,null,null,"      \"gg\": {"]
[null,null,null,null,null,null,"          \"esxiHostname\": \"ujtyy.dev.thinkagile.local\","]
[null,null,null,null,null,null,"          \"xccIpAddress\": \"10.249.101.32\","]
[null,null,null,null,null,null,"          \"vsanIpAddress\": \"192.168.170.34\","]
[null,null,null,null,null,null,"          \"vmotionIpAddress\": \"192.168.178.34\"\r\n  },"]
[null,null,null,null,null,null,"      \"hh\": {"]
[null,null,null,null,null,null,"          \"esxiHostname\": \"aaaa.dev.thinkagile.local\","]
[null,null,null,null,null,null,"          \"xccIpAddress\": \"10.249.101.33\","]
[null,null,null,null,null,null,"          \"vsanIpAddress\": \"192.168.170.35\","]
[null,null,null,null,null,null,"          \"vmotionIpAddress\": \"192.168.178.35\"\r\n  },"]
[null,null,null,null,null,null,"      \"ii\": {"]
[null,null,null,null,null,null,"          \"esxiHostname\": \"jytf.dev.thinkagile.local\","]
[null,null,null,null,null,null,"          \"xccIpAddress\": \"10.249.101.34\","]
[null,null,null,null,null,null,"          \"vsanIpAddress\": \"192.168.170.36\","]
[null,null,null,null,null,null,"          \"vmotionIpAddress\": \"192.168.178.36\"\r\n  },"]
[null,null,null,null,null,null,"      \"jj\": {"]
[null,null,null,null,null,null,"          \"esxiHostname\": \"hgf.dev.thinkagile.local\","]
[null,null,null,null,null,null,"          \"xccIpAddress\": \"10.249.101.35\","]
[null,null,null,null,null,null,"          \"vsanIpAddress\": \"192.168.170.37\","]
[null,null,null,null,null,null,"          \"vmotionIpAddress\": \"192.168.178.37\"\r\n  },"]
[null,null,null,null,null,null,"      \"kk\": {"]
[null,null,null,null,null,null,"          \"esxiHostname\": \"sdcds.dev.thinkagile.local\","]
[null,null,null,null,null,null,"          \"xccIpAddress\": \"10.249.101.37\","]
[null,null,null,null,null,null,"          \"vsanIpAddress\": \"192.168.170.38\","]
[null,null,null,null,null,null,"          \"vmotionIpAddress\": \"192.168.178.38\"\r\n  },"]
[null,null,null,null,null,null,"      \"ll\": {"]
[null,null,null,null,null,null,"          \"esxiHostname\": \"jur.dev.thinkagile.local\","]
[null,null,null,null,null,null,"          \"xccIpAddress\": \"10.249.101.38\","]
[null,null,null,null,null,null,"          \"vsanIpAddress\": \"192.168.170.39\","]
[null,null,null,null,null,null,"          \"vmotionIpAddress\": \"192.168.178.39\"\r\n  },"]
[null,null,null,null,null,null,"      \"mm\": {"]
[null,null,null,null,null,null,"          \"esxiHostname\": \"sdt.dev.thinkagile.local\","]
[null,null,null,null,null,null,"          \"xccIpAddress\": \"10.249.101.39\","]
[null,null,null,null,null,null,"          \"vsanIpAddress\": \"192.168.170.40\","]
[null,null,null,null,null,null,"          \"vmotionIpAddress\": \"192.168.178.40\"\r\n  },"]
[null,null,null,null,null,null,"      \"nn\": {"]
[null,null,null,null,null,null,"          \"esxiHostname\": \"qwww.dev.thinkagile.local\","]
[null,null,null,null,null,null,"          \"xccIpAddress\": \"10.249.101.40\","]
[null,null,null,null,null,null,"          \"vsanIpAddress\": \"192.168.170.41\","]
[null,null,null,null,null,null,"          \"vmotionIpAddress\": \"192.168.178.41\"\r\n  },"]
[null,null,null,null,null,null,"      \"oo\": {"]
[null,null,null,null,null,null,"          \"esxiHostname\": \"kkkdseww.dev.thinkagile.local\","]
[null,null,null,null,null,null,"          \"xccIpAddress\": \"10.249.101.41\","]
[null,null,null,null,null,null,"          \"vsanIpAddress\": \"192.168.170.42\","]
[null,null,null,null,null,null,"          \"vmotionIpAddress\": \"192.168.178.42\"\r\n  },"]
[null,null,null,null,null,null,"      \"pp\": {"]
[null,null,null,null,null,null,"          \"esxiHostname\": \"ffd.dev.thinkagile.local\","]
[null,null,null,null,null,null,"          \"xccIpAddress\": \"10.249.101.42\","]
[null,null,null,null,null,null,"          \"vsanIpAddress\": \"192.168.170.43\","]
[null,null,null,null,null,null,"          \"vmotionIpAddress\": \"192.168.178.43\"\r\n  },"]
[null,null,null,null,null,null,"      \"qq\": {"]
[null,null,null,null,null,null,"          \"esxiHostname\": \"eew.dev.thinkagile.local\","]
[null,null,null,null,null,null,"          \"xccIpAddress\": \"10.249.101.43\","]
[null,null,null,null,null,null,"          \"vsanIpAddress\": \"192.168.170.44\","]
[null,null,null,null,null,null,"          \"vmotionIpAddress\": \"192.168.178.44\"\r\n  },"]
[null,null,null,null,null,null,"      \"rr\": {"]
[null,null,null,null,null,null,"          \"esxiHostname\": \"xcxxc.dev.thinkagile.local\","]
[null,null,null,null,null,null,"          \"xccIpAddress\": \"10.249.101.44\","]
[null,null,null,null,null,null,"          \"vsanIpAddress\": \"192.168.170.45\","]
[null,null,null,null,null,null,"          \"vmotionIpAddress\": \"192.168.178.45\"\r\n  },"]
[null,null,null,null,null,null,"      \"ss\": {"]
[null,null,null,null,null,null,"          \"esxiHostname\": \"cxvd.dev.thinkagile.local\","]
[null,null,null,null,null,null,"          \"xccIpAddress\": \"10.249.101.45\","]
[null,null,null,null,null,null,"          \"vsanIpAddress\": \"192.168.170.46\","]
[null,null,null,null,null,null,"          \"vmotionIpAddress\": \"192.168.178.46\"\r\n  },"]
[null,null,null,null,null,null,"      \"tt\": {"]
[null,null,null,null,null,null,"          \"esxiHostname\": \"vcvfd.dev.thinkagile.local\","]
[null,null,null,null,null,null,"          \"xccIpAddress\": \"10.249.101.46\","]
[null,null,null,null,null,null,"          \"vsanIpAddress\": \"192.168.170.47\","]
[null,null,null,null,null,null,"          \"vmotionIpAddress\": \"192.168.178.47\"\r\n  },"]
[null,null,null,null,null,null,"      \"uu\": {"]
[null,null,null,null,null,null,"          \"esxiHostname\": \"ngmu.dev.thinkagile.local\","]
[null,null,null,null,null,null,"          \"xccIpAddress\": \"10.249.101.47\","]
[null,null,null,null,null,null,"          \"vsanIpAddress\": \"192.168.170.48\","]
[null,null,null,null,null,null,"          \"vmotionIpAddress\": \"192.168.178.48\"\r\n  },"]
[null,null,null,null,null,null,"      \"vv\": {"]
[null,null,null,null,null,null,"          \"esxiHostname\": \"khjh.dev.thinkagile.local\","]
[null,null,null,null,null,null,"          \"xccIpAddress\": \"10.249.101.48\","]
[null,null,null,null,null,null,"          \"vsanIpAddress\": \"192.168.170.49\","]
[null,null,null,null,null,null,"          \"vmotionIpAddress\": \"192.168.178.49\"\r\n  },"]
[null,null,null,null,null,null,"      \"ww\": {"]
[null,null,null,null,null,null,"          \"esxiHostname\": \"mjhm.dev.thinkagile.local\","]
[null,null,null,null,null,null,"          \"xccIpAddress\": \"10.249.101.49\","]
[null,null,null,null,null,null,"          \"vsanIpAddress\": \"192.168.170.50\","]
[null,null,null,null,null,null,"          \"vmotionIpAddress\": \"192.168.178.50\"\r\n  },"]
[null,null,null,null,null,null,"      \"xx\": {"]
[null,null,null,null,null,null,"          \"esxiHostname\": \"oioi.dev.thinkagile.local\","]
[null,null,null,null,null,null,"          \"xccIpAddress\": \"10.249.101.50\","]
[null,null,null,null,null,null,"          \"vsanIpAddress\": \"192.168.170.51\","]
[null,null,null,null,null,null,"          \"vmotionIpAddress\": \"192.168.178.51\"\r\n  },"]
[null,null,null,null,null,null,"      \"yy\": {"]
[null,null,null,null,null,null,"          \"esxiHostname\": \"oiooo.dev.thinkagile.local\","]
[null,null,null,null,null,null,"          \"xccIpAddress\": \"10.249.101.51\","]
[null,null,null,null,null,null,"          \"vsanIpAddress\": \"192.168.170.52\","]
[null,null,null,null,null,null,"          \"vmotionIpAddress\": \"192.168.178.52\"\r\n  },"]
[null,null,null,null,null,null,"      \"zz\": {"]
[null,null,null,null,null,null,"          \"esxiHostname\": \"yhhyy.dev.thinkagile.local\","]
[null,null,null,null,null,null,"          \"xccIpAddress\": \"10.249.101.52\","]
[null,null,null,null,null,null,"          \"vsanIpAddress\": \"192.168.170.53\","]
[null,null,null,null,null,null,"          \"vmotionIpAddress\": \"192.168.178.53\"\r\n  },"]
[null,null,null,null,null,null,"      \"aaa\": {"]
[null,null,null,null,null,null,"          \"esxiHostname\": \"jjyyy.dev.thinkagile.local\","]
[null,null,null,null,null,null,"          \"xccIpAddress\": \"10.249.101.53\","]
[null,null,null,null,null,null,"          \"vsanIpAddress\": \"192.168.170.54\","]
[null,null,null,null,null,null,"          \"vmotionIpAddress\": \"192.168.178.54\"\r\n  },"]
[null,null,null,null,null,null,"      \"bbb\": {"]
[null,null,null,null,null,null,"          \"esxiHostname\": \"jujuju.dev.thinkagile.local\","]
[null,null,null,null,null,null,"          \"xccIpAddress\": \"10.249.101.54\","]
[null,null,null,null,null,null,"          \"vsanIpAddress\": \"192.168.170.55\","]
[null,null,null,null,null,null,"          \"vmotionIpAddress\": \"192.168.178.55\"\r\n  },"]
[null,null,null,null,null,null,"      \"ccc\": {"]
[null,null,null,null,null,null,"          \"esxiHostname\": \"yuut.dev.thinkagile.local\","]
[null,null,null,null,null,null,"          \"xccIpAddress\": \"10.249.101.55\","]
[null,null,null,null,null,null,"          \"vsanIpAddress\": \"192.168.170.56\","]
[null,null,null,null,null,null,"          \"vmotionIpAddress\": \"192.168.178.56\"\r\n  },"]
[null,null,null,null,null,null,"      \"ddd\": {"]
[null,null,null,null,null,null,"          \"esxiHostname\": \"dwedc.dev.thinkagile.local\","]
[null,null,null,null,null,null,"          \"xccIpAddress\": \"10.249.101.56\","]
[null,null,null,null,null,null,"          \"vsanIpAddress\": \"192.168.170.57\","]
[null,null,null,null,null,null,"          \"vmotionIpAddress\": \"192.168.178.57\"\r\n  },"]
[null,null,null,null,null,null,"      \"eee\": {"]
[null,null,null,null,null,null,"          \"esxiHostname\": \"cdssd.dev.thinkagile.local\","]
[null,null,null,null,null,null,"          \"xccIpAddress\": \"10.249.101.57\","]
[null,null,null,null,null,null,"          \"vsanIpAddress\": \"192.168.170.58\","]
[null,null,null,null,null,null,"          \"vmotionIpAddress\": \"192.168.178.58\"\r\n  },"]
[null,null,null,null,null,null,"      \"fff\": {"]
[null,null,null,null,null,null,"          \"esxiHostname\": \"cdsdcs.dev.thinkagile.local\","]
[null,null,null,null,null,null,"          \"xccIpAddress\": \"10.249.101.58\","]
[null,null,null,null,null,null,"          \"vsanIpAddress\": \"192.168.170.59\","]
[null,null,null,null,null,null,"          \"vmotionIpAddress\": \"192.168.178.59\"\r\n  },"]
[null,null,null,null,null,null,"      \"ggg\": {"]
[null,null,null,null,null,null,"          \"esxiHostname\": \"dwdew.dev.thinkagile.local\","]
[null,null,null,null,null,null,"          \"xccIpAddress\": \"10.249.101.59\","]
[null,null,null,null,null,null,"          \"vsanIpAddress\": \"192.168.170.60\","]
[null,null,null,null,null,null,"          \"vmotionIpAddress\": \"192.168.178.60\"\r\n  },"]
[null,null,null,null,null,null,"      \"hhh\": {"]
[null,null,null,null,null,null,"          \"esxiHostname\": \"efrfs.dev.thinkagile.local\","]
[null,null,null,null,null,null,"          \"xccIpAddress\": \"10.249.101.60\","]
[null,null,null,null,null,null,"          \"vsanIpAddress\": \"192.168.170.61\","]
[null,null,null,null,null,null,"          \"vmotionIpAddress\": \"192.168.178.61\"\r\n  },"]
[null,null,null,null,null,null,"      \"asdsad\": {"]
[null,null,null,null,null,null,"          \"esxiHostname\": \"asdsa.dev.thinkagile.local\","]
[null,null,null,null,null,null,"          \"xccIpAddress\": \"10.249.101.61\","]
[null,null,null,null,null,null,"          \"vsanIpAddress\": \"192.168.170.62\","]
[null,null,null,null,null,null,"          \"vmotionIpAddress\": \"192.168.178.62\"\r\n  },"]
[null,null,null,null,null,null,"      \"eeeeee\": {"]
[null,null,null,null,null,null,"          \"esxiHostname\": \"aaaaaaddd.dev.thinkagile.local\","]
[null,null,null,null,null,null,"          \"xccIpAddress\": \"10.249.101.62\","]
[null,null,null,null,null,null,"          \"vsanIpAddress\": \"192.168.170.63\","]
[null,null,null,null,null,null,"          \"vmotionIpAddress\": \"192.168.178.63\"\r\n  },"]
[null,null,null,null,null,null,"      \"rrrrrrr\": {"]
[null,null,null,null,null,null,"          \"esxiHostname\": \"dsdsdsdsds.dev.thinkagile.local\","]
[null,null,null,null,null,null,"          \"xccIpAddress\": \"10.249.101.63\","]
[null,null,null,null,null,null,"          \"vsanIpAddress\": \"192.168.170.64\","]
[null,null,null,null,null,null,"          \"vmotionIpAddress\": \"192.168.178.64\"\r\n  },"]
[null,null,null,null,null,null,"      \"ttttttt\": {"]
[null,null,null,null,null,null,"          \"esxiHostname\": \"fdfdfdfdfd.dev.thinkagile.local\","]
[null,null,null,null,null,null,"          \"xccIpAddress\": \"10.249.101.64\","]
[null,null,null,null,null,null,"          \"vsanIpAddress\": \"192.168.170.65\","]
[null,null,null,null,null,null,"          \"vmotionIpAddress\": \"192.168.178.65\"\r\n  }"]
[null,null,null,null,null,null," }\r\n}"]

{"sheet":"New Cluster - Existing vCSA","index":2,"n_rows":192,"n_cols":16,"rows_kept":192,"cut":false,"hidden":false,"merged":[[111,9,114,9],[106,2,106,3],[106,5,106,6],[106,9,106,10],[107,2,107,3],[107,5,107,6],[107,9,107,10],[104,2,104,3],[104,5,104,6],[104,9,104,10],[105,2,105,3],[105,5,105,6],[105,9,105,10],[102,2,102,3],[102,5,102,6],[102,9,102,10],[103,2,103,3],[103,5,103,6],[103,9,103,10],[100,2,100,3],[100,5,100,6],[100,9,100,10],[101,2,101,3],[101,5,101,6],[101,9,101,10],[98,2,98,3],[98,5,98,6],[98,9,98,10],[99,2,99,3],[99,5,99,6],[99,9,99,10],[96,2,96,3],[96,5,96,6],[96,9,96,10],[97,2,97,3],[97,5,97,6],[97,9,97,10],[94,2,94,3],[94,5,94,6],[94,9,94,10],[95,2,95,3],[95,5,95,6],[95,9,95,10],[92,2,92,3],[92,5,92,6],[92,9,92,10],[93,2,93,3],[93,5,93,6],[93,9,93,10],[90,2,90,3],[90,5,90,6],[90,9,90,10],[91,2,91,3],[91,5,91,6],[91,9,91,10],[88,2,88,3],[88,5,88,6],[88,9,88,10],[89,2,89,3],[89,5,89,6],[89,9,89,10],[86,2,86,3],[87,2,87,3],[87,5,87,6],[87,9,87,10],[84,2,84,3],[84,5,84,6],[84,9,84,10],[85,2,85,3],[85,5,85,6],[85,9,85,10],[86,5,86,6],[86,9,86,10],[82,2,82,3],[82,5,82,6],[82,9,82,10],[83,2,83,3],[83,5,83,6],[83,9,83,10],[80,2,80,3],[80,5,80,6],[80,9,80,10],[81,2,81,3],[81,5,81,6],[81,9,81,10],[78,2,78,3],[78,5,78,6],[78,9,78,10],[79,2,79,3],[79,5,79,6],[79,9,79,10],[76,2,76,3],[76,5,76,6],[76,9,76,10],[77,2,77,3],[77,5,77,6],[77,9,77,10],[74,2,74,3],[74,5,74,6],[74,9,74,10],[75,2,75,3],[75,5,75,6],[75,9,75,10],[72,2,72,3],[72,5,72,6],[72,9,72,10],[73,2,73,3],[73,5,73,6],[73,9,73,10],[70,2,70,3],[70,5,70,6],[70,9,70,10],[71,2,71,3],[71,5,71,6],[71,9,71,10],[68,2,68,3],[68,5,68,6],[68,9,68,10],[69,2,69,3],[69,5,69,6],[69,9,69,10],[66,2,66,3],[66,5,66,6],[66,9,66,10],[67,2,67,3],[67,5,67,6],[67,9,67,10],[64,2,64,3],[64,5,64,6],[64,9,64,10],[65,2,65,3],[65,5,65,6],[65,9,65,10],[62,2,62,3],[62,5,62,6],[62,9,62,10],[63,2,63,3],[63,5,63,6],[63,9,63,10],[60,2,60,3],[60,5,60,6],[60,9,60,10],[61,2,61,3],[61,5,61,6],[61,9,61,10],[58,2,58,3],[58,5,58,6],[58,9,58,10],[59,2,59,3],[59,5,59,6],[59,9,59,10],[56,2,56,3],[56,5,56,6],[56,9,56,10],[57,2,57,3],[57,5,57,6],[57,9,57,10],[54,2,54,3],[54,5,54,6],[54,9,54,10],[55,2,55,3],[55,5,55,6],[55,9,55,10],[52,2,52,3],[52,5,52,6],[52,9,52,10],[53,2,53,3],[53,5,53,6],[53,9,53,10],[50,2,50,3],[50,5,50,6],[50,9,50,10],[51,2,51,3],[51,5,51,6],[51,9,51,10],[48,2,48,3],[48,5,48,6],[48,9,48,10],[49,2,49,3],[49,5,49,6],[49,9,49,10],[46,2,46,3],[47,2,47,3],[44,2,44,3],[44,5,44,6],[44,9,44,10],[45,2,45,3],[45,5,45,6],[45,9,45,10],[46,5,46,6],[46,9,46,10],[47,5,47,6],[47,9,47,10],[37,2,37,4],[37,7,37,10],[41,1,41,10],[41,16,41,20],[43,2,43,3],[43,5,43,6],[43,9,43,10],[33,2,33,4],[34,6,34,7],[35,2,35,4],[35,7,35,10],[36,2,36,4],[36,7,36,10],[33,8,33,10],[30,2,30,4],[31,2,31,4],[32,2,32,4],[24,2,24,4],[24,6,24,10],[25,2,25,4],[25,6,25,10],[28,1,28,10],[29,2,29,4],[29,8,29,10],[30,8,30,10],[31,8,31,10],[32,8,32,10],[22,2,22,4],[22,6,22,10],[23,2,23,4],[23,6,23,10],[16,2,16,4],[16,6,16,10],[17,2,17,4],[17,6,17,10],[20,2,20,5],[20,6,20,10],[18,2,18,4],[18,6,18,10],[14,2,14,4],[14,6,14,10],[15,2,15,4],[15,6,15,10],[9,2,9,4],[9,6,9,10],[10,2,10,4],[10,6,10,10],[21,2,21,4],[21,6,21,10],[12,6,12,10],[0,0,1,5],[2,9,5,9],[5,0,5,7],[7,2,7,5],[7,6,7,10],[8,2,8,4],[8,6,8,10],[12,2,12,5],[13,2,13,5],[13,6,13,10]]}
["EXISTING VCENTER CONFIGURATION FILE",null,null,null,null,null,5]
[null,null,null,null,null,null,null,null,null,"Export JSON File"]
[null,null,null,null,null,null,null,null,null,"Export JSON file"]
[]
[]
["          Global Settings"]
[]
[null,null,"vCenter Settings",null,null,null,"Description"]
[null,null,"Installation Type",null,null,"existing","Install a new vSAN cluster in an existing vCenter Server instance. A minimum 3 physical hosts are required to form a new cluster."]
[null,null,"vCenter FQDN",null,null,null,"Fully Qualified Domain Name for the existing vCenter Server.",null,null,null,null,{"$f":"AND(RegExpMatch(F10, \"^([a-zA-Z0-9]([a-zA-Z0-9\\-]{0,61}[a-zA-Z0-9])?\\.)([a-zA-Z0-9]([a-zA-Z0-9\\-]{0,61}[a-zA-Z0-9])?\\.)+[a-zA-Z]+$\"), LEN(F10) <= 255)","v":false}]
[null,"✓","Administrator Username",null,null,"administrator","Administrative account for the existing vCenter Server.",null,null,null,null,{"$f":"AND(RegExpMatch(F11, \"^[a-zA-Z0-9]+(?:[-_\\.][a-zA-Z0-9]+)*[a-zA-Z0-9]$\"), LEN(F11) <= 255)","v":true}]
[]
[null,null,"Install LXCI",null,null,null,"Click column B to install Lenovo XClarity Integrator."]
[null,null,"LXCI Settings",null,null,null,"Description"]
[null,null,"LXCI Hostname",null,null,null,"Hostname of the LXCI instance.",null,null,null,null,{"$f":"AND(RegExpMatch(F15, \"^[a-zA-Z0-9][a-zA-Z0-9-]+[a-zA-Z0-9]$\"), LEN(F15) <= 255)","v":false}]
[null,null,"LXCI User",null,null,"admin","Administrative account for the new LXCI instance."]
[null,null,"XCC Access IP Address",null,null,null,"The XCC Network IP address. It is optional if the controllers are accessible over the management network.",null,null,null,null,{"$f":"AND(IPV4Address(F17),  NOT(ISBLANK(F17)), NOT(ISNUMBER(SEARCH(\" \",F17))))","v":false}]
[null,null,"XCC Access VLAN Id",null,null,null,"VLAN ID used to configure the XCC management port group in the distributed virtual switch.",null,null,null,null,{"$f":"AND(F18 >= 1, F18 <= 4094, RegExpMatch(F18, \"^[0-9]*$\"),  NOT(ISBLANK(F18)), NOT(ISNUMBER(SEARCH(\" \",F18))))","v":false}]
[null,null,"Start vLCM Cluster Remediation",null,null,null,"Click column B to to verify that all hosts are compliant with the vLCM image.  The process is triggered after the cluster has been configured."]
[]
[null,null,"Cluster Settings",null,null,null,"Description"]
[null,null,"Organization Name",null,null,null,"Name of your organization.",null,null,null,null,{"$f":"AND(RegExpMatch(F22, \"^[a-zA-Z0-9\\-\\_]{0,255}$\"), NOT(ISBLANK(F22)))","v":false}]
[null,null,"Region Name",null,null,null,"Name of your organization.",null,null,null,null,{"$f":"AND(RegExpMatch(F23, \"^[a-zA-Z0-9\\-\\_]{0,255}$\"), NOT(ISBLANK(F23)))","v":false}]
[null,null,"Datacenter Name",null,null,null,"The name of the vCenter datacenter.",null,null,null,null,{"$f":"AND(RegExpMatch(F24, \"^[a-zA-Z0-9\\-\\_]{0,255}$\"), NOT(ISBLANK(F24)))","v":false}]
[null,null,"Site Name",null,null,null,"Site where the cluster is located.",null,null,null,null,{"$f":"AND(RegExpMatch(F25, \"^[a-zA-Z0-9\\-\\_]{0,255}$\"), NOT(ISBLANK(F25)))","v":false}]
[null,null,"vSAN Cluster Name",null,null,null,"The name of the vSAN cluster.",null,null,null,null,{"$f":"AND(RegExpMatch(F26, \"^[a-zA-Z0-9\\-\\_]{0,255}$\"), NOT(ISBLANK(F26)))","v":false}]
[]
[]
["          Hosts","Cluster Networks"]
[null,null,"Network Type",null,null,"Gateway","Netmask","VLAN ID","Description"]
[null,null,"ESXi Management Network",null,null,null,null,null,"Network used for ESXi management traffic.",null,null,{"$f":"GatewayValidation(F31)","v":false},{"$f":"Subnet_Mask(G31)","v":false},{"$f":"CheckIfDifferentSubnet(F31, G31)","v":false},{"$f":"CheckVlanManagExisting","v":true}]
[null,null,"XCC Network",null,null,null,null,null,"Network used for XCC management traffic. The IP Gateway is optional.",null,null,{"$f":"GatewayValidation(F32)","v":false},{"$f":"Subnet_Mask(G32)","v":false},{"$f":"CheckIfDifferentSubnet(F32, G32)","v":false}]
[null,null,"vSAN Network",null,null,null,null,null,"Network used for vSAN data traffic. The IP Gateway is optional.",null,null,{"$f":"GatewayValidation(F33)","v":false},{"$f":"Subnet_Mask(G33)","v":false},{"$f":"CheckIfDifferentSubnet(F33, G33)","v":false},{"$f":"CheckVlanVsanExisting","v":true}]
[null,null,"vMotion Network",null,null,null,null,null,"Network used for vMotion traffic. The IP Gateway is optional.",null,null,{"$f":"GatewayValidation(F34)","v":false},{"$f":"Subnet_Mask(G34)","v":false},{"$f":"CheckIfDifferentSubnet(F34, G34)","v":false},{"$f":"CheckVlanVmotionExisting","v":true}]
[]
[null,null,"Type",null,null,"DNS","NTP","Description"]
[null,null,"Primary",null,null,null,null,"Primary DNS and NTP servers used by the vCenter server and the ESXi hosts.",null,null,null,{"$f":"AND(IPV4Address(F37),  NOT(ISBLANK(F37)), NOT(ISNUMBER(SEARCH(\" \",F37))))","v":false},{"$f":"OR(AND(RegExpMatch(G37,\"^([a-zA-Z0-9]([a-zA-Z0-9\\-]{0,61}[a-zA-Z0-9])?\\.)([a-zA-Z0-9]([a-zA-Z0-9\\-]{0,61}[a-zA-Z0-9])?\\.)+[a-zA-Z]+$\"),LEN(G37)<=255),AND(IPV4Address(G37),NOT(ISBLANK(G37)),NOT(ISNUMBER(SEARCH(\" \",G37)))))","v":false}]
[null,null,"Secondary (Optional)",null,null,null,null,"Secondary DNS and NTP servers used by the vCenter server and gthe ESXi hosts.",null,null,null,{"$f":"AND(IPV4Address(F38),  NOT(ISBLANK(F38)), NOT(ISNUMBER(SEARCH(\" \",F38))))","v":false},{"$f":"OR(AND(RegExpMatch(G38,\"^([a-zA-Z0-9]([a-zA-Z0-9\\-]{0,61}[a-zA-Z0-9])?\\.)([a-zA-Z0-9]([a-zA-Z0-9\\-]{0,61}[a-zA-Z0-9])?\\.)+[a-zA-Z]+$\"),LEN(G38)<=255),AND(IPV4Address(G38),NOT(ISBLANK(G38)),NOT(ISNUMBER(SEARCH(\" \",G38)))))","v":false}]
[]
[]
[]
[null,"          Hosts"]
[]
[null,null,null,null,"Serial Number","ESXi Hostname",null,"XCC IP Address","vSAN IP Address","vMotion IP Address",null,"serial nr","esxi host","xcc ip addrs","vsan ip addr","vmotion ip addr"]
[null,null,1,null,null,null,null,null,null,null,null,{"$f":"AND(Serial_Number(E45),  NOT(ISBLANK(E45)), NOT(ISNUMBER(SEARCH(\" \",E45))))","v":false},{"$f":"AND(RegExpMatch(F45, \"^[a-zA-Z0-9][a-zA-Z0-9-]+[a-zA-Z0-9]$\"), LEN(F45) <= 255, Unique_ESXi_Hostname(F45))","v":false},{"$f":"IPAddressValidation(H45)","v":false},{"$f":"IPAddressValidation(I45)","v":false},{"$f":"IPAddressValidation(J45)","v":false}]
[null,null,2,null,null,null,null,null,null,null,null,{"$f":"AND(Serial_Number(E46),  NOT(ISBLANK(E46)), NOT(ISNUMBER(SEARCH(\" \",E46))))","v":false},false,{"$f":"IPAddressValidation(H46)","v":false},{"$f":"IPAddressValidation(I46)","v":false},{"$f":"IPAddressValidation(J46)","v":false}]
[null,null,3,null,null,null,null,null,null,null,null,{"$f":"AND(Serial_Number(E47),  NOT(ISBLANK(E47)), NOT(ISNUMBER(SEARCH(\" \",E47))))","v":false},false,{"$f":"IPAddressValidation(H47)","v":false},{"$f":"IPAddressValidation(I47)","v":false},{"$f":"IPAddressValidation(J47)","v":false}]
[null,null,4,null,null,null,null,null,null,null,null,false,false,{"$f":"IPAddressValidation(H48)","v":false},{"$f":"IPAddressValidation(I48)","v":false},{"$f":"IPAddressValidation(J48)","v":false}]
[null,null,5,null,null,null,null,null,null,null,null,false,false,{"$f":"IPAddressValidation(H49)","v":false},{"$f":"IPAddressValidation(I49)","v":false},{"$f":"IPAddressValidation(J49)","v":false}]
[null,null,6,null,null,null,null,null,null,null,null,false,false,{"$f":"IPAddressValidation(H50)","v":false},{"$f":"IPAddressValidation(I50)","v":false},{"$f":"IPAddressValidation(J50)","v":false}]
[null,null,7,null,null,null,null,null,null,null,null,false,false,{"$f":"IPAddressValidation(H51)","v":false},{"$f":"IPAddressValidation(I51)","v":false},{"$f":"IPAddressValidation(J51)","v":false}]
[null,null,8,null,null,null,null,null,null,null,null,false,false,{"$f":"IPAddressValidation(H52)","v":false},{"$f":"IPAddressValidation(I52)","v":false},{"$f":"IPAddressValidation(J52)","v":false}]
[null,null,9,null,null,null,null,null,null,null,null,false,false,{"$f":"IPAddressValidation(H53)","v":false},{"$f":"IPAddressValidation(I53)","v":false},{"$f":"IPAddressValidation(J53)","v":false}]
[null,null,10,null,null,null,null,null,null,null,null,false,false,{"$f":"IPAddressValidation(H54)","v":false},{"$f":"IPAddressValidation(I54)","v":false},{"$f":"IPAddressValidation(J54)","v":false}]
[null,null,11,null,null,null,null,null,null,null,null,false,false,{"$f":"IPAddressValidation(H55)","v":false},{"$f":"IPAddressValidation(I55)","v":false},{"$f":"IPAddressValidation(J55)","v":false}]
[null,null,12,null,null,null,null,null,null,null,null,false,false,{"$f":"IPAddressValidation(H56)","v":false},{"$f":"IPAddressValidation(I56)","v":false},{"$f":"IPAddressValidation(J56)","v":false}]
[null,null,13,null,null,null,null,null,null,null,null,false,false,{"$f":"IPAddressValidation(H57)","v":false},{"$f":"IPAddressValidation(I57)","v":false},{"$f":"IPAddressValidation(J57)","v":false}]
[null,null,14,null,null,null,null,null,null,null,null,false,false,{"$f":"IPAddressValidation(H58)","v":false},{"$f":"IPAddressValidation(I58)","v":false},{"$f":"IPAddressValidation(J58)","v":false}]
[null,null,15,null,null,null,null,null,null,null,null,false,false,{"$f":"IPAddressValidation(H59)","v":false},{"$f":"IPAddressValidation(I59)","v":false},{"$f":"IPAddressValidation(J59)","v":false}]
[null,null,16,null,null,null,null,null,null,null,null,false,false,{"$f":"IPAddressValidation(H60)","v":false},{"$f":"IPAddressValidation(I60)","v":false},{"$f":"IPAddressValidation(J60)","v":false}]
[null,null,17,null,null,null,null,null,null,null,null,false,false,{"$f":"IPAddressValidation(H61)","v":false},{"$f":"IPAddressValidation(I61)","v":false},{"$f":"IPAddressValidation(J61)","v":false}]
[null,null,18,null,null,null,null,null,null,null,null,false,false,{"$f":"IPAddressValidation(H62)","v":false},{"$f":"IPAddressValidation(I62)","v":false},{"$f":"IPAddressValidation(J62)","v":false}]
[null,null,19,null,null,null,null,null,null,null,null,false,false,{"$f":"IPAddressValidation(H63)","v":false},{"$f":"IPAddressValidation(I63)","v":false},{"$f":"IPAddressValidation(J63)","v":false}]
[null,null,20,null,null,null,null,null,null,null,null,false,false,{"$f":"IPAddressValidation(H64)","v":false},{"$f":"IPAddressValidation(I64)","v":false},{"$f":"IPAddressValidation(J64)","v":false}]
[null,null,21,null,null,null,null,null,null,null,null,false,false,{"$f":"IPAddressValidation(H65)","v":false},{"$f":"IPAddressValidation(I65)","v":false},{"$f":"IPAddressValidation(J65)","v":false}]
[null,null,22,null,null,null,null,null,null,null,null,false,false,{"$f":"IPAddressValidation(H66)","v":false},{"$f":"IPAddressValidation(I66)","v":false},{"$f":"IPAddressValidation(J66)","v":false}]
[null,null,23,null,null,null,null,null,null,null,null,false,false,{"$f":"IPAddressValidation(H67)","v":false},{"$f":"IPAddressValidation(I67)","v":false},{"$f":"IPAddressValidation(J67)","v":false}]
[null,null,24,null,null,null,null,null,null,null,null,false,false,{"$f":"IPAddressValidation(H68)","v":false},{"$f":"IPAddressValidation(I68)","v":false},{"$f":"IPAddressValidation(J68)","v":false}]
[null,null,25,null,null,null,null,null,null,null,null,false,false,{"$f":"IPAddressValidation(H69)","v":false},{"$f":"IPAddressValidation(I69)","v":false},{"$f":"IPAddressValidation(J69)","v":false}]
[null,null,26,null,null,null,null,null,null,null,null,false,false,{"$f":"IPAddressValidation(H70)","v":false},{"$f":"IPAddressValidation(I70)","v":false},{"$f":"IPAddressValidation(J70)","v":false}]
[null,null,27,null,null,null,null,null,null,null,null,false,false,{"$f":"IPAddressValidation(H71)","v":false},{"$f":"IPAddressValidation(I71)","v":false},{"$f":"IPAddressValidation(J71)","v":false}]
[null,null,28,null,null,null,null,null,null,null,null,false,false,{"$f":"IPAddressValidation(H72)","v":false},{"$f":"IPAddressValidation(I72)","v":false},{"$f":"IPAddressValidation(J72)","v":false}]
[null,null,29,null,null,null,null,null,null,null,null,false,false,{"$f":"IPAddressValidation(H73)","v":false},{"$f":"IPAddressValidation(I73)","v":false},{"$f":"IPAddressValidation(J73)","v":false}]
[null,null,30,null,null,null,null,null,null,null,null,false,false,{"$f":"IPAddressValidation(H74)","v":false},{"$f":"IPAddressValidation(I74)","v":false},{"$f":"IPAddressValidation(J74)","v":false}]
[null,null,31,null,null,null,null,null,null,null,null,false,false,{"$f":"IPAddressValidation(H75)","v":false},{"$f":"IPAddressValidation(I75)","v":false},{"$f":"IPAddressValidation(J75)","v":false}]
[null,null,32,null,null,null,null,null,null,null,null,false,false,{"$f":"IPAddressValidation(H76)","v":false},{"$f":"IPAddressValidation(I76)","v":false},{"$f":"IPAddressValidation(J76)","v":false}]
[null,null,33,null,null,null,null,null,null,null,null,false,{"$f":"AND(RegExpMatch(F77, \"^[a-zA-Z0-9][a-zA-Z0-9-]+[a-zA-Z0-9]$\"), LEN(F77) <= 255, Unique_ESXi_Hostname(F77))","v":false},{"$f":"IPAddressValidation(H77)","v":false},{"$f":"IPAddressValidation(I77)","v":false},{"$f":"IPAddressValidation(J77)","v":false}]
[null,null,34,null,null,null,null,null,null,null,null,false,false,{"$f":"IPAddressValidation(H78)","v":false},{"$f":"IPAddressValidation(I78)","v":false},{"$f":"IPAddressValidation(J78)","v":false}]
[null,null,35,null,null,null,null,null,null,null,null,false,false,{"$f":"IPAddressValidation(H79)","v":false},{"$f":"IPAddressValidation(I79)","v":false},{"$f":"IPAddressValidation(J79)","v":false}]
[null,null,36,null,null,null,null,null,null,null,null,false,false,{"$f":"IPAddressValidation(H80)","v":false},{"$f":"IPAddressValidation(I80)","v":false},{"$f":"IPAddressValidation(J80)","v":false}]
[null,null,37,null,null,null,null,null,null,null,null,false,false,{"$f":"IPAddressValidation(H81)","v":false},{"$f":"IPAddressValidation(I81)","v":false},{"$f":"IPAddressValidation(J81)","v":false}]
[null,null,38,null,null,null,null,null,null,null,null,false,false,{"$f":"IPAddressValidation(H82)","v":false},{"$f":"IPAddressValidation(I82)","v":false},{"$f":"IPAddressValidation(J82)","v":false}]
[null,null,39,null,null,null,null,null,null,null,null,false,false,{"$f":"IPAddressValidation(H83)","v":false},{"$f":"IPAddressValidation(I83)","v":false},{"$f":"IPAddressValidation(J83)","v":false}]
[null,null,40,null,null,null,null,null,null,null,null,false,false,{"$f":"IPAddressValidation(H84)","v":false},{"$f":"IPAddressValidation(I84)","v":false},{"$f":"IPAddressValidation(J84)","v":false}]
[null,null,41,null,null,null,null,null,null,null,null,false,false,{"$f":"IPAddressValidation(H85)","v":false},{"$f":"IPAddressValidation(I85)","v":false},{"$f":"IPAddressValidation(J85)","v":false}]
[null,null,42,null,null,null,null,null,null,null,null,false,false,{"$f":"IPAddressValidation(H86)","v":false},{"$f":"IPAddressValidation(I86)","v":false},{"$f":"IPAddressValidation(J86)","v":false}]
[null,null,43,null,null,null,null,null,null,null,null,false,false,{"$f":"IPAddressValidation(H87)","v":false},{"$f":"IPAddressValidation(I87)","v":false},{"$f":"IPAddressValidation(J87)","v":false}]
[null,null,44,null,null,null,null,null,null,null,null,false,false,{"$f":"IPAddressValidation(H88)","v":false},{"$f":"IPAddressValidation(I88)","v":false},{"$f":"IPAddressValidation(J88)","v":false}]
[null,null,45,null,null,null,null,null,null,null,null,false,false,{"$f":"IPAddressValidation(H89)","v":false},{"$f":"IPAddressValidation(I89)","v":false},{"$f":"IPAddressValidation(J89)","v":false}]
[null,null,46,null,null,null,null,null,null,null,null,false,false,{"$f":"IPAddressValidation(H90)","v":false},{"$f":"IPAddressValidation(I90)","v":false},{"$f":"IPAddressValidation(J90)","v":false}]
[null,null,47,null,null,null,null,null,null,null,null,false,false,{"$f":"IPAddressValidation(H91)","v":false},{"$f":"IPAddressValidation(I91)","v":false},{"$f":"IPAddressValidation(J91)","v":false}]
[null,null,48,null,null,null,null,null,null,null,null,false,false,{"$f":"IPAddressValidation(H92)","v":false},{"$f":"IPAddressValidation(I92)","v":false},{"$f":"IPAddressValidation(J92)","v":false}]
[null,null,49,null,null,null,null,null,null,null,null,false,false,{"$f":"IPAddressValidation(H93)","v":false},{"$f":"IPAddressValidation(I93)","v":false},{"$f":"IPAddressValidation(J93)","v":false}]
[null,null,50,null,null,null,null,null,null,null,null,false,false,{"$f":"IPAddressValidation(H94)","v":false},{"$f":"IPAddressValidation(I94)","v":false},{"$f":"IPAddressValidation(J94)","v":false}]
[null,null,51,null,null,null,null,null,null,null,null,false,false,{"$f":"IPAddressValidation(H95)","v":false},{"$f":"IPAddressValidation(I95)","v":false},{"$f":"IPAddressValidation(J95)","v":false}]
[null,null,52,null,null,null,null,null,null,null,null,false,false,{"$f":"IPAddressValidation(H96)","v":false},{"$f":"IPAddressValidation(I96)","v":false},{"$f":"IPAddressValidation(J96)","v":false}]
[null,null,53,null,null,null,null,null,null,null,null,false,false,{"$f":"IPAddressValidation(H97)","v":false},{"$f":"IPAddressValidation(I97)","v":false},{"$f":"IPAddressValidation(J97)","v":false}]
[null,null,54,null,null,null,null,null,null,null,null,false,false,{"$f":"IPAddressValidation(H98)","v":false},{"$f":"IPAddressValidation(I98)","v":false},{"$f":"IPAddressValidation(J98)","v":false}]
[null,null,55,null,null,null,null,null,null,null,null,false,false,{"$f":"IPAddressValidation(H99)","v":false},{"$f":"IPAddressValidation(I99)","v":false},{"$f":"IPAddressValidation(J99)","v":false}]
[null,null,56,null,null,null,null,null,null,null,null,false,false,{"$f":"IPAddressValidation(H100)","v":false},{"$f":"IPAddressValidation(I100)","v":false},{"$f":"IPAddressValidation(J100)","v":false}]
[null,null,57,null,null,null,null,null,null,null,null,false,false,{"$f":"IPAddressValidation(H101)","v":false},{"$f":"IPAddressValidation(I101)","v":false},{"$f":"IPAddressValidation(J101)","v":false}]
[null,null,58,null,null,null,null,null,null,null,null,false,false,{"$f":"IPAddressValidation(H102)","v":false},{"$f":"IPAddressValidation(I102)","v":false},{"$f":"IPAddressValidation(J102)","v":false}]
[null,null,59,null,null,null,null,null,null,null,null,false,false,{"$f":"IPAddressValidation(H103)","v":false},{"$f":"IPAddressValidation(I103)","v":false},{"$f":"IPAddressValidation(J103)","v":false}]
[null,null,60,null,null,null,null,null,null,null,null,false,false,{"$f":"IPAddressValidation(H104)","v":false},{"$f":"IPAddressValidation(I104)","v":false},{"$f":"IPAddressValidation(J104)","v":false}]
[null,null,61,null,null,null,null,null,null,null,null,false,false,{"$f":"IPAddressValidation(H105)","v":false},{"$f":"IPAddressValidation(I105)","v":false},{"$f":"IPAddressValidation(J105)","v":false}]
[null,null,62,null,null,null,null,null,null,null,null,false,false,{"$f":"IPAddressValidation(H106)","v":false},{"$f":"IPAddressValidation(I106)","v":false},{"$f":"IPAddressValidation(J106)","v":false}]
[null,null,63,null,null,null,null,null,null,null,null,false,false,{"$f":"IPAddressValidation(H107)","v":false},{"$f":"IPAddressValidation(I107)","v":false},{"$f":"IPAddressValidation(J107)","v":false}]
[null,null,64,null,null,null,null,null,null,null,null,false,false,{"$f":"IPAddressValidation(H108)","v":false},{"$f":"IPAddressValidation(I108)","v":false},{"$f":"IPAddressValidation(J108)","v":false}]
[]
[]
[]
[]
[]
[]
[]
[]
[]
[]
[null,null,null,null,null,null,null,null,null,"Export JSON File"]
[]
[]
[]
[]
[]
[]
[]
[]
[]
[]
[]
[]
[]
[]
[]
[]
[]
[]
[]
[]
[]
[]
[]
[]
[]
[]
[]
[]
[]
[]
[]
[]
[]
[]
[]
[]
[]
[]
[]
[]
[]
[]
[]
[]
[]
[]
[]
[]
[]
[]
[]
[]
[]
[]
[]
[]
[]
[]
[]
[]
[]
[]
[]
[]
[]
[]
[]
[]
[]
[]
[]
[]
[null,null,null,null,null,{"$f":"+F192F192:Q379","v":{"$error":"#NAME?"}}]

{"sheet":"Expand Cluster","index":3,"n_rows":558,"n_cols":16,"rows_kept":558,"cut":false,"hidden":false,"merged":[[99,9,102,9],[94,2,94,3],[94,5,94,6],[94,9,94,10],[95,2,95,3],[95,5,95,6],[95,9,95,10],[92,2,92,3],[92,5,92,6],[92,9,92,10],[93,2,93,3],[93,5,93,6],[93,9,93,10],[90,2,90,3],[90,5,90,6],[90,9,90,10],[91,2,91,3],[91,5,91,6],[91,9,91,10],[88,2,88,3],[88,5,88,6],[88,9,88,10],[89,2,89,3],[89,5,89,6],[89,9,89,10],[86,2,86,3],[86,5,86,6],[86,9,86,10],[87,2,87,3],[87,5,87,6],[87,9,87,10],[84,2,84,3],[84,5,84,6],[84,9,84,10],[85,2,85,3],[85,5,85,6],[85,9,85,10],[82,2,82,3],[82,5,82,6],[82,9,82,10],[83,2,83,3],[83,5,83,6],[83,9,83,10],[80,2,80,3],[80,5,80,6],[80,9,80,10],[81,2,81,3],[81,5,81,6],[81,9,81,10],[78,2,78,3],[78,5,78,6],[78,9,78,10],[79,2,79,3],[79,5,79,6],[79,9,79,10],[76,2,76,3],[76,5,76,6],[76,9,76,10],[77,2,77,3],[77,5,77,6],[77,9,77,10],[74,2,74,3],[74,5,74,6],[74,9,74,10],[75,2,75,3],[75,5,75,6],[75,9,75,10],[72,2,72,3],[72,5,72,6],[72,9,72,10],[73,2,73,3],[73,5,73,6],[73,9,73,10],[70,2,70,3],[70,5,70,6],[70,9,70,10],[71,2,71,3],[71,5,71,6],[71,9,71,10],[68,2,68,3],[68,5,68,6],[68,9,68,10],[69,2,69,3],[69,5,69,6],[69,9,69,10],[66,2,66,3],[66,5,66,6],[66,9,66,10],[67,2,67,3],[67,5,67,6],[67,9,67,10],[64,2,64,3],[64,5,64,6],[64,9,64,10],[65,2,65,3],[65,5,65,6],[65,9,65,10],[62,2,62,3],[62,5,62,6],[62,9,62,10],[63,2,63,3],[63,5,63,6],[63,9,63,10],[60,2,60,3],[60,5,60,6],[60,9,60,10],[61,2,61,3],[61,5,61,6],[61,9,61,10],[58,2,58,3],[58,5,58,6],[58,9,58,10],[59,2,59,3],[59,5,59,6],[59,9,59,10],[56,2,56,3],[56,5,56,6],[56,9,56,10],[57,2,57,3],[57,5,57,6],[57,9,57,10],[54,2,54,3],[54,5,54,6],[54,9,54,10],[55,2,55,3],[55,5,55,6],[55,9,55,10],[52,2,52,3],[52,5,52,6],[52,9,52,10],[53,2,53,3],[53,5,53,6],[53,9,53,10],[50,2,50,3],[50,5,50,6],[50,9,50,10],[51,2,51,3],[51,5,51,6],[51,9,51,10],[48,2,48,3],[48,5,48,6],[48,9,48,10],[49,2,49,3],[49,5,49,6],[49,9,49,10],[46,2,46,3],[46,5,46,6],[46,9,46,10],[47,2,47,3],[47,5,47,6],[47,9,47,10],[44,2,44,3],[44,5,44,6],[44,9,44,10],[45,2,45,3],[45,5,45,6],[45,9,45,10],[42,2,42,3],[42,5,42,6],[42,9,42,10],[43,2,43,3],[43,5,43,6],[43,9,43,10],[40,2,40,3],[40,5,40,6],[40,9,40,10],[41,2,41,3],[41,5,41,6],[41,9,41,10],[38,2,38,3],[38,5,38,6],[38,9,38,10],[39,2,39,3],[39,5,39,6],[39,9,39,10],[36,2,36,3],[36,5,36,6],[36,9,36,10],[37,2,37,3],[37,5,37,6],[37,9,37,10],[34,2,34,3],[34,5,34,6],[34,9,34,10],[35,2,35,3],[35,5,35,6],[35,9,35,10],[32,2,32,3],[32,5,32,6],[32,9,32,10],[33,2,33,3],[33,5,33,6],[33,9,33,10],[29,1,29,10],[29,16,29,20],[31,2,31,3],[31,5,31,6],[31,9,31,10],[25,2,25,4],[22,2,22,4],[23,2,23,4],[24,2,24,4],[21,8,21,10],[22,8,22,10],[23,8,23,10],[24,8,24,10],[25,8,25,10],[16,2,16,4],[16,6,16,10],[17,2,17,4],[17,6,17,10],[20,1,20,10],[21,2,21,4],[14,2,14,4],[14,6,14,10],[15,2,15,4],[15,6,15,10],[12,2,12,5],[12,6,12,10],[9,2,9,4],[9,6,9,10],[10,2,10,4],[10,6,10,10],[0,0,1,5],[2,9,5,9],[5,0,5,7],[7,2,7,5],[7,6,7,10],[8,2,8,4],[8,6,8,10],[13,2,13,4],[13,6,13,10]]}
["EXPAND CLUSTER CONFIGURATION FILE"]
[null,null,null,null,null,null,null,null,null,"Export JSON File"]
[null,null,null,null,null,null,null,null,null,"Export JSON file"]
[]
[]
["          Global Settings"]
[]
[null,null,"vCenter Settings",null,null,null,"Description"]
[null,null,"Installation Type",null,null,"expand","Expand an existing vSAN cluster in an existing vCenter Server instance."]
[null,null,"vCenter FQDN",null,null,null,"Fully Qualified Domain Name for the existing vCenter Server instance.",null,null,null,null,{"$f":"AND(RegExpMatch(F10, \"^([a-zA-Z0-9]([a-zA-Z0-9\\-]{0,61}[a-zA-Z0-9])?\\.)([a-zA-Z0-9]([a-zA-Z0-9\\-]{0,61}[a-zA-Z0-9])?\\.)+[a-zA-Z]+$\"), LEN(F10) <= 255)","v":false}]
[null,"✓","Administrator Username",null,null,"administrator","Administrative account for the existing vCenter Server instance.",null,null,null,null,{"$f":"AND(RegExpMatch(F11, \"^[a-zA-Z0-9]+(?:[-_\\.][a-zA-Z0-9]+)*[a-zA-Z0-9]$\"), LEN(F11) <= 255)","v":true}]
[]
[null,null,"Cluster Settings",null,null,null,"Description"]
[null,null,"Organization Name",null,null,null,"Name of your organization.",null,null,null,null,{"$f":"AND(RegExpMatch(F14, \"^[a-zA-Z0-9\\-\\_]{0,255}$\"), NOT(ISBLANK(F14)))","v":false}]
[null,null,"Region Name",null,null,null,"Region where the cluster is located.",null,null,null,null,{"$f":"AND(RegExpMatch(F15, \"^[a-zA-Z0-9\\-\\_]{0,255}$\"), NOT(ISBLANK(F15)))","v":false}]
[null,null,"Datacenter Name",null,null,null,"The name of the vCenter datacenter.",null,null,null,null,{"$f":"AND(RegExpMatch(F16, \"^[a-zA-Z0-9\\-\\_]{0,255}$\"), NOT(ISBLANK(F16)))","v":false}]
[null,null,"Site Name",null,null,null,"Site where the cluster is located.",null,null,null,null,{"$f":"AND(RegExpMatch(F17, \"^[a-zA-Z0-9\\-\\_]{0,255}$\"), NOT(ISBLANK(F17)))","v":false}]
[null,null,"vSAN Cluster Name",null,null,null,"The name of the vSAN cluster.",null,null,null,null,{"$f":"AND(RegExpMatch(F18, \"^[a-zA-Z0-9\\-\\_]{0,255}$\"), NOT(ISBLANK(F18)))","v":false}]
[]
[]
["          Hosts","Cluster Networks"]
[null,null,"Network Type",null,null,"Gateway","Netmask","VLAN ID","Description"]
[null,null,"ESXi Management Network",null,null,null,null,null,"Network used for ESXi management traffic.",null,null,{"$f":"GatewayValidation(F23)","v":false},{"$f":"Subnet_Mask(G23)","v":false},{"$f":"CheckIfDifferentSubnet(F23, G23)","v":false},{"$f":"CheckVlanManagExpand","v":true}]
[null,null,"XCC Network",null,null,null,null,null,"Network used for XCC management traffic. The IP Gateway is optional.",null,null,{"$f":"GatewayValidation(F24)","v":false},{"$f":"Subnet_Mask(G24)","v":false},{"$f":"CheckIfDifferentSubnet(F24, G24)","v":false}]
[null,null,"vSAN Network",null,null,null,null,null,"Network used for vSAN data traffic. The IP Gateway is optional.",null,null,{"$f":"GatewayValidation(F25)","v":false},{"$f":"Subnet_Mask(G25)","v":false},{"$f":"CheckIfDifferentSubnet(F25, G25)","v":false},{"$f":"CheckVlanVsanExpand","v":true}]
[null,null,"vMotion Network",null,null,null,null,null,"Network used for vMotion traffic. The IP Gateway is optional.",null,null,{"$f":"GatewayValidation(F26)","v":false},{"$f":"Subnet_Mask(G26)","v":false},{"$f":"CheckIfDifferentSubnet(F26, G26)","v":false},{"$f":"CheckVlanVmotionExpand","v":true}]
[]
[]
[]
[null,"          Hosts"]
[]
[null,null,null,null,"Serial Number","ESXi Hostname",null,"XCC IP Address","vSAN IP Address","vMotion IP Address",null,"serial nr","esxi host","xcc ip addrs","vsan ip addr","vmotion ip addr"]
[null,null,1,null,null,null,null,null,null,null,null,{"$f":"AND(Serial_Number(E33),  NOT(ISBLANK(E33)), NOT(ISNUMBER(SEARCH(\" \",E33))))","v":false},{"$f":"AND(RegExpMatch(F33, \"^[a-zA-Z0-9][a-zA-Z0-9-]+[a-zA-Z0-9]$\"), LEN(F33) <= 255, Unique_ESXi_Hostname(F33))","v":false},{"$f":"IPAddressValidation(H33)","v":false},{"$f":"IPAddressValidation(I33)","v":false},{"$f":"IPAddressValidation(J33)","v":false}]
[null,null,2,null,null,null,null,null,null,null,null,{"$f":"AND(Serial_Number(E34),  NOT(ISBLANK(E34)), NOT(ISNUMBER(SEARCH(\" \",E34))))","v":false},false,{"$f":"IPAddressValidation(H34)","v":false},{"$f":"IPAddressValidation(I34)","v":false},{"$f":"IPAddressValidation(J34)","v":false}]
[null,null,3,null,null,null,null,null,null,null,null,false,false,{"$f":"IPAddressValidation(H35)","v":false},{"$f":"IPAddressValidation(I35)","v":false},{"$f":"IPAddressValidation(J35)","v":false}]
[null,null,4,null,null,null,null,null,null,null,null,false,false,{"$f":"IPAddressValidation(H36)","v":false},{"$f":"IPAddressValidation(I36)","v":false},{"$f":"IPAddressValidation(J36)","v":false}]
[null,null,5,null,null,null,null,null,null,null,null,false,false,{"$f":"IPAddressValidation(H37)","v":false},{"$f":"IPAddressValidation(I37)","v":false},{"$f":"IPAddressValidation(J37)","v":false}]
[null,null,6,null,null,null,null,null,null,null,null,false,false,{"$f":"IPAddressValidation(H38)","v":false},{"$f":"IPAddressValidation(I38)","v":false},{"$f":"IPAddressValidation(J38)","v":false}]
[null,null,7,null,null,null,null,null,null,null,null,false,false,{"$f":"IPAddressValidation(H39)","v":false},{"$f":"IPAddressValidation(I39)","v":false},{"$f":"IPAddressValidation(J39)","v":false}]
[null,null,8,null,null,null,null,null,null,null,null,false,false,{"$f":"IPAddressValidation(H40)","v":false},{"$f":"IPAddressValidation(I40)","v":false},{"$f":"IPAddressValidation(J40)","v":false}]
[null,null,9,null,null,null,null,null,null,null,null,false,false,{"$f":"IPAddressValidation(H41)","v":false},{"$f":"IPAddressValidation(I41)","v":false},{"$f":"IPAddressValidation(J41)","v":false}]
[null,null,10,null,null,null,null,null,null,null,null,false,false,{"$f":"IPAddressValidation(H42)","v":false},{"$f":"IPAddressValidation(I42)","v":false},{"$f":"IPAddressValidation(J42)","v":false}]
[null,null,11,null,null,null,null,null,null,null,null,false,false,{"$f":"IPAddressValidation(H43)","v":false},{"$f":"IPAddressValidation(I43)","v":false},{"$f":"IPAddressValidation(J43)","v":false}]
[null,null,12,null,null,null,null,null,null,null,null,false,false,{"$f":"IPAddressValidation(H44)","v":false},{"$f":"IPAddressValidation(I44)","v":false},{"$f":"IPAddressValidation(J44)","v":false}]
[null,null,13,null,null,null,null,null,null,null,null,false,false,{"$f":"IPAddressValidation(H45)","v":false},{"$f":"IPAddressValidation(I45)","v":false},{"$f":"IPAddressValidation(J45)","v":false}]
[null,null,14,null,null,null,null,null,null,null,null,false,false,{"$f":"IPAddressValidation(H46)","v":false},{"$f":"IPAddressValidation(I46)","v":false},{"$f":"IPAddressValidation(J46)","v":false}]
[null,null,15,null,null,null,null,null,null,null,null,false,false,{"$f":"IPAddressValidation(H47)","v":false},{"$f":"IPAddressValidation(I47)","v":false},{"$f":"IPAddressValidation(J47)","v":false}]
[null,null,16,null,null,null,null,null,null,null,null,false,false,{"$f":"IPAddressValidation(H48)","v":false},{"$f":"IPAddressValidation(I48)","v":false},{"$f":"IPAddressValidation(J48)","v":false}]
[null,null,17,null,null,null,null,null,null,null,null,false,false,{"$f":"IPAddressValidation(H49)","v":false},{"$f":"IPAddressValidation(I49)","v":false},{"$f":"IPAddressValidation(J49)","v":false}]
[null,null,18,null,null,null,null,null,null,null,null,false,false,{"$f":"IPAddressValidation(H50)","v":false},{"$f":"IPAddressValidation(I50)","v":false},{"$f":"IPAddressValidation(J50)","v":false}]
[null,null,19,null,null,null,null,null,null,null,null,false,false,{"$f":"IPAddressValidation(H51)","v":false},{"$f":"IPAddressValidation(I51)","v":false},{"$f":"IPAddressValidation(J51)","v":false}]
[null,null,20,null,null,null,null,null,null,null,null,false,false,{"$f":"IPAddressValidation(H52)","v":false},{"$f":"IPAddressValidation(I52)","v":false},{"$f":"IPAddressValidation(J52)","v":false}]
[null,null,21,null,null,null,null,null,null,null,null,false,false,{"$f":"IPAddressValidation(H53)","v":false},{"$f":"IPAddressValidation(I53)","v":false},{"$f":"IPAddressValidation(J53)","v":false}]
[null,null,22,null,null,null,null,null,null,null,null,false,false,{"$f":"IPAddressValidation(H54)","v":false},{"$f":"IPAddressValidation(I54)","v":false},{"$f":"IPAddressValidation(J54)","v":false}]
[null,null,23,null,null,null,null,null,null,null,null,false,false,{"$f":"IPAddressValidation(H55)","v":false},{"$f":"IPAddressValidation(I55)","v":false},{"$f":"IPAddressValidation(J55)","v":false}]
[null,null,24,null,null,null,null,null,null,null,null,false,false,{"$f":"IPAddressValidation(H56)","v":false},{"$f":"IPAddressValidation(I56)","v":false},{"$f":"IPAddressValidation(J56)","v":false}]
[null,null,25,null,null,null,null,null,null,null,null,false,false,{"$f":"IPAddressValidation(H57)","v":false},{"$f":"IPAddressValidation(I57)","v":false},{"$f":"IPAddressValidation(J57)","v":false}]
[null,null,26,null,null,null,null,null,null,null,null,false,false,{"$f":"IPAddressValidation(H58)","v":false},{"$f":"IPAddressValidation(I58)","v":false},{"$f":"IPAddressValidation(J58)","v":false}]
[null,null,27,null,null,null,null,null,null,null,null,false,false,{"$f":"IPAddressValidation(H59)","v":false},{"$f":"IPAddressValidation(I59)","v":false},{"$f":"IPAddressValidation(J59)","v":false}]
[null,null,28,null,null,null,null,null,null,null,null,false,false,{"$f":"IPAddressValidation(H60)","v":false},{"$f":"IPAddressValidation(I60)","v":false},{"$f":"IPAddressValidation(J60)","v":false}]
[null,null,29,null,null,null,null,null,null,null,null,false,false,{"$f":"IPAddressValidation(H61)","v":false},{"$f":"IPAddressValidation(I61)","v":false},{"$f":"IPAddressValidation(J61)","v":false}]
[null,null,30,null,null,null,null,null,null,null,null,false,false,{"$f":"IPAddressValidation(H62)","v":false},{"$f":"IPAddressValidation(I62)","v":false},{"$f":"IPAddressValidation(J62)","v":false}]
[null,null,31,null,null,null,null,null,null,null,null,false,false,{"$f":"IPAddressValidation(H63)","v":false},{"$f":"IPAddressValidation(I63)","v":false},{"$f":"IPAddressValidation(J63)","v":false}]
[null,null,32,null,null,null,null,null,null,null,null,false,false,{"$f":"IPAddressValidation(H64)","v":false},{"$f":"IPAddressValidation(I64)","v":false},{"$f":"IPAddressValidation(J64)","v":false}]
[null,null,33,null,null,null,null,null,null,null,null,false,{"$f":"AND(RegExpMatch(F65, \"^[a-zA-Z0-9][a-zA-Z0-9-]+[a-zA-Z0-9]$\"), LEN(F65) <= 255, Unique_ESXi_Hostname(F65))","v":false},{"$f":"IPAddressValidation(H65)","v":false},{"$f":"IPAddressValidation(I65)","v":false},{"$f":"IPAddressValidation(J65)","v":false}]
[null,null,34,null,null,null,null,null,null,null,null,false,false,{"$f":"IPAddressValidation(H66)","v":false},{"$f":"IPAddressValidation(I66)","v":false},{"$f":"IPAddressValidation(J66)","v":false}]
[null,null,35,null,null,null,null,null,null,null,null,false,false,{"$f":"IPAddressValidation(H67)","v":false},{"$f":"IPAddressValidation(I67)","v":false},{"$f":"IPAddressValidation(J67)","v":false}]
[null,null,36,null,null,null,null,null,null,null,null,false,false,{"$f":"IPAddressValidation(H68)","v":false},{"$f":"IPAddressValidation(I68)","v":false},{"$f":"IPAddressValidation(J68)","v":false}]
[null,null,37,null,null,null,null,null,null,null,null,false,false,{"$f":"IPAddressValidation(H69)","v":false},{"$f":"IPAddressValidation(I69)","v":false},{"$f":"IPAddressValidation(J69)","v":false}]
[null,null,38,null,null,null,null,null,null,null,null,false,false,{"$f":"IPAddressValidation(H70)","v":false},{"$f":"IPAddressValidation(I70)","v":false},{"$f":"IPAddressValidation(J70)","v":false}]
[null,null,39,null,null,null,null,null,null,null,null,false,false,{"$f":"IPAddressValidation(H71)","v":false},{"$f":"IPAddressValidation(I71)","v":false},{"$f":"IPAddressValidation(J71)","v":false}]
[null,null,40,null,null,null,null,null,null,null,null,false,false,{"$f":"IPAddressValidation(H72)","v":false},{"$f":"IPAddressValidation(I72)","v":false},{"$f":"IPAddressValidation(J72)","v":false}]
[null,null,41,null,null,null,null,null,null,null,null,false,false,{"$f":"IPAddressValidation(H73)","v":false},{"$f":"IPAddressValidation(I73)","v":false},{"$f":"IPAddressValidation(J73)","v":false}]
[null,null,42,null,null,null,null,null,null,null,null,false,false,{"$f":"IPAddressValidation(H74)","v":false},{"$f":"IPAddressValidation(I74)","v":false},{"$f":"IPAddressValidation(J74)","v":false}]
[null,null,43,null,null,null,null,null,null,null,null,false,false,{"$f":"IPAddressValidation(H75)","v":false},{"$f":"IPAddressValidation(I75)","v":false},{"$f":"IPAddressValidation(J75)","v":false}]
[null,null,44,null,null,null,null,null,null,null,null,false,false,{"$f":"IPAddressValidation(H76)","v":false},{"$f":"IPAddressValidation(I76)","v":false},{"$f":"IPAddressValidation(J76)","v":false}]
[null,null,45,null,null,null,null,null,null,null,null,false,false,{"$f":"IPAddressValidation(H77)","v":false},{"$f":"IPAddressValidation(I77)","v":false},{"$f":"IPAddressValidation(J77)","v":false}]
[null,null,46,null,null,null,null,null,null,null,null,false,false,{"$f":"IPAddressValidation(H78)","v":false},{"$f":"IPAddressValidation(I78)","v":false},{"$f":"IPAddressValidation(J78)","v":false}]
[null,null,47,null,null,null,null,null,null,null,null,false,false,{"$f":"IPAddressValidation(H79)","v":false},{"$f":"IPAddressValidation(I79)","v":false},{"$f":"IPAddressValidation(J79)","v":false}]
[null,null,48,null,null,null,null,null,null,null,null,false,false,{"$f":"IPAddressValidation(H80)","v":false},{"$f":"IPAddressValidation(I80)","v":false},{"$f":"IPAddressValidation(J80)","v":false}]
[null,null,49,null,null,null,null,null,null,null,null,false,false,{"$f":"IPAddressValidation(H81)","v":false},{"$f":"IPAddressValidation(I81)","v":false},{"$f":"IPAddressValidation(J81)","v":false}]
[null,null,50,null,null,null,null,null,null,null,null,false,false,{"$f":"IPAddressValidation(H82)","v":false},{"$f":"IPAddressValidation(I82)","v":false},{"$f":"IPAddressValidation(J82)","v":false}]
[null,null,51,null,null,null,null,null,null,null,null,false,false,{"$f":"IPAddressValidation(H83)","v":false},{"$f":"IPAddressValidation(I83)","v":false},{"$f":"IPAddressValidation(J83)","v":false}]
[null,null,52,null,null,null,null,null,null,null,null,false,false,{"$f":"IPAddressValidation(H84)","v":false},{"$f":"IPAddressValidation(I84)","v":false},{"$f":"IPAddressValidation(J84)","v":false}]
[null,null,53,null,null,null,null,null,null,null,null,false,false,{"$f":"IPAddressValidation(H85)","v":false},{"$f":"IPAddressValidation(I85)","v":false},{"$f":"IPAddressValidation(J85)","v":false}]
[null,null,54,null,null,null,null,null,null,null,null,false,false,{"$f":"IPAddressValidation(H86)","v":false},{"$f":"IPAddressValidation(I86)","v":false},{"$f":"IPAddressValidation(J86)","v":false}]
[null,null,55,null,null,null,null,null,null,null,null,false,false,{"$f":"IPAddressValidation(H87)","v":false},{"$f":"IPAddressValidation(I87)","v":false},{"$f":"IPAddressValidation(J87)","v":false}]
[null,null,56,null,null,null,null,null,null,null,null,false,false,{"$f":"IPAddressValidation(H88)","v":false},{"$f":"IPAddressValidation(I88)","v":false},{"$f":"IPAddressValidation(J88)","v":false}]
[null,null,57,null,null,null,null,null,null,null,null,false,false,{"$f":"IPAddressValidation(H89)","v":false},{"$f":"IPAddressValidation(I89)","v":false},{"$f":"IPAddressValidation(J89)","v":false}]
[null,null,58,null,null,null,null,null,null,null,null,false,false,{"$f":"IPAddressValidation(H90)","v":false},{"$f":"IPAddressValidation(I90)","v":false},{"$f":"IPAddressValidation(J90)","v":false}]
[null,null,59,null,null,null,null,null,null,null,null,false,false,{"$f":"IPAddressValidation(H91)","v":false},{"$f":"IPAddressValidation(I91)","v":false},{"$f":"IPAddressValidation(J91)","v":false}]
[null,null,60,null,null,null,null,null,null,null,null,false,false,{"$f":"IPAddressValidation(H92)","v":false},{"$f":"IPAddressValidation(I92)","v":false},{"$f":"IPAddressValidation(J92)","v":false}]
[null,null,61,null,null,null,null,null,null,null,null,false,false,{"$f":"IPAddressValidation(H93)","v":false},{"$f":"IPAddressValidation(I93)","v":false},{"$f":"IPAddressValidation(J93)","v":false}]
[null,null,62,null,null,null,null,null,null,null,null,false,false,{"$f":"IPAddressValidation(H94)","v":false},{"$f":"IPAddressValidation(I94)","v":false},{"$f":"IPAddressValidation(J94)","v":false}]
[null,null,63,null,null,null,null,null,null,null,null,false,false,{"$f":"IPAddressValidation(H95)","v":false},{"$f":"IPAddressValidation(I95)","v":false},{"$f":"IPAddressValidation(J95)","v":false}]
[null,null,64,null,null,null,null,null,null,null,null,false,false,{"$f":"IPAddressValidation(H96)","v":false},{"$f":"IPAddressValidation(I96)","v":false},{"$f":"IPAddressValidation(J96)","v":false}]
[]
[]
[null,null,null,null,null,null,null,null,null,"Export JSON File"]
[null,null,null,null,null,null,null,null,null,"Export JSON file"]
[]
[]
[]
[]
[]
[]
[]
[]
[]
[]
[]
[]
[]
[]
[]
[]
[]
[]
[]
[]
[]
[]
[]
[]
[]
[]
[]
[]
[]
[]
[]
[]
[]
[]
[]
[]
[]
[]
[]
[]
[]
[]
[]
[]
[]
[]
[]
[]
[]
[]
[]
[]
[]
[]
[]
[]
[]
[]
[]
[]
[]
[]
[]
[]
[]
[]
[]
[]
[]
[]
[]
[]
[]
[]
[]
[]
[]
[]
[]
[]
[]
[]
[]
[]
[]
[]
[]
[]
[]
[]
[]
[]
[]
[]
[]
[]
[]
[]
[]
[null,null,null,null,null,null,"{ "]
[null,null,null,null,null,null,"  \"globalSettings\": {"]
[null,null,null,null,null,null,"    \"vcenterSettings\": { "]
[null,null,null,null,null,null,"      \"installationType\": \"expand\",",null,{"$f":"F9","v":"expand"}]
[null,null,null,null,null,null,"      \"adminUsername\": \"administrator\",",null,{"$f":"F11","v":"administrator"}]
[null,null,null,null,null,null,"      \"fqdn\": \"dev.thinkagile.local\"",null,{"$f":"F10","v":0}]
[null,null,null,null,null,null,"    }, "]
[null,null,null,null,null,null,"    \"clusterSettings\": {"]
[null,null,null,null,null,null,"      \"orgName\": \"Lenovo\",",null,{"$f":"F14","v":0}]
[null,null,null,null,null,null,"      \"regionName\": \"EMEA\",",null,{"$f":"F15","v":0}]
[null,null,null,null,null,null,"      \"datacenterName\": \"DC\",",null,{"$f":"F16","v":0}]
[null,null,null,null,null,null,"      \"siteName\": \"Ro\",",null,{"$f":"F17","v":0}]
[null,null,null,null,null,null,"      \"vSanClusterName\": \"CL\"",null,{"$f":"F18","v":0}]
[null,null,null,null,null,null,"    },"]
[null,null,null,null,null,null,"    \"clusterNetworks\": {"]
[null,null,null,null,null,null,"      \"esxiManagementNetwork\": {"]
[null,null,null,null,null,null,"        \"gateway\": \"172.29.6.201\",",null,{"$f":"F23","v":0}]
[null,null,null,null,null,null,"        \"netmask\": \"255.255.0.0\",",null,{"$f":"G23","v":0}]
[null,null,null,null,null,null,"        \"vlan\": \"1\"",null,{"$f":"H23","v":0}]
[null,null,null,null,null,null,"     },"]
[null,null,null,null,null,null,"      \"xccNetwork\": {"]
[null,null,null,null,null,null,"        \"gateway\": \"10.249.101.0\",",null,{"$f":"F24","v":0}]
[null,null,null,null,null,null,"        \"netmask\": \"255.255.0.0\"",null,{"$f":"G24","v":0}]
[]
[null,null,null,null,null,null,"     },"]
[null,null,null,null,null,null,"      \"vsanNetwork\": {"]
[null,null,null,null,null,null,"        \"gateway\": \"192.168.170.1\",",null,{"$f":"F25","v":0}]
[null,null,null,null,null,null,"        \"netmask\": \"255.255.255.0\",",null,{"$f":"G25","v":0}]
[null,null,null,null,null,null,"        \"vlan\": \"2\"",null,{"$f":"H25","v":0}]
[null,null,null,null,null,null,"     },"]
[null,null,null,null,null,null,"      \"vmotionNetwork\": {"]
[null,null,null,null,null,null,"        \"gateway\": \"192.168.178.2\",",null,{"$f":"F26","v":0}]
[null,null,null,null,null,null,"        \"netmask\": \"255.255.255.0\",",null,{"$f":"G26","v":0}]
[null,null,null,null,null,null,"        \"vlan\": \"3\"",null,{"$f":"H26","v":0}]
[null,null,null,null,null,null,"     }"]
[null,null,null,null,null,null,"    }"]
[null,null,null,null,null,null,"   },"]
[null,null,null,null,null,null,"   \"hosts\": { "]
[null,null,null,null,null,null,"      \"a\": {"]
[null,null,null,null,null,null,"          \"esxiHostname\": \"aaa.dev.thinkagile.local\",",null," a aaa  10.249.101.1 192.168.170.2 192.168.178.1 b aaaaa  10.249.101.2 192.168.170.3 192.168.178.2 c sde  10.249.101.3 192.168.170.4 192.168.178.3 d aaaaaa  10.249.101.4 192.168.170.5 192.168.178.4 e saasas  10.249.101.5 192.168.170.6 192.168.178.5 f sasasaaa  10.249.101.6 192.168.170.7 192.168.178.6 g saasaa  10.249.101.7 192.168.170.8 192.168.178.7 m fred  10.249.101.8 192.168.170.9 192.168.178.8 n dedede  10.249.101.9 192.168.170.10 192.168.178.9 o frfrfrfr  10.249.101.10 192.168.170.11 192.168.178.10 p ede  10.249.101.11 192.168.170.12 192.168.178.11 q iur  10.249.101.12 192.168.170.13 192.168.178.12 r lolo  10.249.101.13 192.168.170.14 192.168.178.13 s loliki  10.249.101.14 192.168.170.15 192.168.178.14 t kujuj  10.249.101.15 192.168.170.16 192.168.178.15 u yhyhy  10.249.101.16 192.168.170.17 192.168.178.16 v grtgt  10.249.101.17 192.168.170.18 192.168.178.17 w rfrfef  10.249.101.18 192.168.170.19 192.168.178.18 x deds  10.249.101.19 192.168.170.20 192.168.178.19 y cdcdcdfr  10.249.101.20 192.168.170.21 192.168.178.20 z gta  10.249.101.21 192.168.170.22 192.168.178.21 aa g67j  10.249.101.22 192.168.170.23 192.168.178.22 bb opok  10.249.101.23 192.168.170.24 192.168.178.23 cc 8k8  10.249.101.24 192.168.170.25 192.168.178.24 dd mmksmd  10.249.101.25 192.168.170.26 192.168.178.25 ee cdksmokv  10.249.101.26 192.168.170.27 192.168.178.26 ff doiew  10.249.101.27 192.168.170.28 192.168.178.27 mm odkoewc  10.249.101.28 192.168.170.29 192.168.178.28 nn ikuku  10.249.101.29 192.168.170.30 192.168.178.29 oo jujujum  10.249.101.30 192.168.170.31 192.168.178.30 pp jyhy  10.249.101.31 192.168.170.32 192.168.178.31 qq nhnh  10.249.101.32 192.168.170.33 192.168.178.32 rr tty65  10.249.101.33 192.168.170.34 192.168.178.33 ss hyju7  10.249.101.34 192.168.170.35 192.168.178.34 tt nnyuy  10.249.101.35 192.168.170.36 192.168.178.35 uu wsedew  10.249.101.36 192.168.170.37 192.168.178.36 vv ceewew  10.249.101.37 192.168.170.38 192.168.178.37 ww edewdew  10.249.101.38 192.168.170.39 192.168.178.38 xx eeeeeeeeeee  10.249.101.39 192.168.170.40 192.168.178.39 yy edwdeweeeeeeeeeee  10.249.101.40 192.168.170.41 192.168.178.40 zz kiu  10.249.101.41 192.168.170.42 192.168.178.41 aaa tyttttttttttt  10.249.101.42 192.168.170.43 192.168.178.42 bbb rrrrrrrrrrrrr  10.249.101.43 192.168.170.44 192.168.178.43 ccc ddddddddddddd  10.249.101.44 192.168.170.45 192.168.178.44 ddd aaaaaaaaaw  10.249.101.45 192.168.170.46 192.168.178.45 eee wwwwwwwwwd  10.249.101.46 192.168.170.47 192.168.178.46 fff eeeeeeeew  10.249.101.47 192.168.170.48 192.168.178.47 mmm dddddddddf  10.249.101.48 192.168.170.49 192.168.178.48 nnn fgdddddddddg  10.249.101.49 192.168.170.50 192.168.178.49 ooo dsc  10.249.101.50 192.168.170.51 192.168.178.50 ppp ewes  10.249.101.51 192.168.170.52 192.168.178.51 qqq jyukmj  10.249.101.52 192.168.170.53 192.168.178.52 rrr thytghyt  10.249.101.53 192.168.170.54 192.168.178.53 sss t55erg  10.249.101.54 192.168.170.55 192.168.178.54 ttt yjthgn  10.249.101.55 192.168.170.56 192.168.178.55 uuu 6ttttttttt5  10.249.101.56 192.168.170.57 192.168.178.56 vvv 5555555555  10.249.101.57 192.168.170.58 192.168.178.57 www 666666666  10.249.101.58 192.168.170.59 192.168.178.58 ggg 77777777777  10.249.101.59 192.168.170.60 192.168.178.59 hhh 888888888888  10.249.101.60 192.168.170.61 192.168.178.60 iii 899999990  10.249.101.61 192.168.170.62 192.168.178.61 jjj 222222  10.249.101.62 192.168.170.63 192.168.178.63 kkk 2222  10.249.101.63 192.168.170.64 192.168.178.64 lll 21313  10.249.101.64 192.168.170.65 192.168.178.65 a aaa  10.249.101.1 192.168.170.2 192.168.178.1 b aaaaa  10.249.101.2 192.168.170.3 192.168.178.2 c sde  10.249.101.3 192.168.170.4 192.168.178.3 d aaaaaa  10.249.101.4 192.168.170.5 192.168.178.4 e saasas  10.249.101.5 192.168.170.6 192.168.178.5 f sasasaaa  10.249.101.6 192.168.170.7 192.168.178.6 g saasaa  10.249.101.7 192.168.170.8 192.168.178.7 m fred  10.249.101.8 192.168.170.9 192.168.178.8 n dedede  10.249.101.9 192.168.170.10 192.168.178.9 o frfrfrfr  10.249.101.10 192.168.170.11 192.168.178.10 p ede  10.249.101.11 192.168.170.12 192.168.178.11 q iur  10.249.101.12 192.168.170.13 192.168.178.12 r lolo  10.249.101.13 192.168.170.14 192.168.178.13 s loliki  10.249.101.14 192.168.170.15 192.168.178.14 t kujuj  10.249.101.15 192.168.170.16 192.168.178.15 u yhyhy  10.249.101.16 192.168.170.17 192.168.178.16 v grtgt  10.249.101.17 192.168.170.18 192.168.178.17 w rfrfef  10.249.101.18 192.168.170.19 192.168.178.18 x deds  10.249.101.19 192.168.170.20 192.168.178.19 y cdcdcdfr  10.249.101.20 192.168.170.21 192.168.178.20 z gta  10.249.101.21 192.168.170.22 192.168.178.21 aa g67j  10.249.101.22 192.168.170.23 192.168.178.22 bb opok  10.249.101.23 192.168.170.24 192.168.178.23 cc 8k8  10.249.101.24 192.168.170.25 192.168.178.24 dd mmksmd  10.249.101.25 192.168.170.26 192.168.178.25 ee cdksmokv  10.249.101.26 192.168.170.27 192.168.178.26 ff doiew  10.249.101.27 192.168.170.28 192.168.178.27 mm odkoewc  10.249.101.28 192.168.170.29 192.168.178.28 nn ikuku  10.249.101.29 192.168.170.30 192.168.178.29 oo jujujum  10.249.101.30 192.168.170.31 192.168.178.30 pp jyhy  10.249.101.31 192.168.170.32 192.168.178.31 qq nhnh  10.249.101.32 192.168.170.33 192.168.178.32 rr tty65  10.249.101.33 192.168.170.34 192.168.178.33 ss hyju7  10.249.101.34 192.168.170.35 192.168.178.34 tt nnyuy  10.249.101.35 192.168.170.36 192.168.178.35 uu wsedew  10.249.101.36 192.168.170.37 192.168.178.36 vv ceewew  10.249.101.37 192.168.170.38 192.168.178.37 ww edewdew  10.249.101.38 192.168.170.39 192.168.178.38 xx eeeeeeeeeee  10.249.101.39 192.168.170.40 192.168.178.39 yy edwdeweeeeeeeeeee  10.249.101.40 192.168.170.41 192.168.178.40 zz kiu  10.249.101.41 192.168.170.42 192.168.178.41 aaa tyttttttttttt  10.249.101.42 192.168.170.43 192.168.178.42 bbb rrrrrrrrrrrrr  10.249.101.43 192.168.170.44 192.168.178.43 ccc ddddddddddddd  10.249.101.44 192.168.170.45 192.168.178.44 ddd aaaaaaaaaw  10.249.101.45 192.168.170.46 192.168.178.45 eee wwwwwwwwwd  10.249.101.46 192.168.170.47 192.168.178.46 fff eeeeeeeew  10.249.101.47 192.168.170.48 192.168.178.47 mmm dddddddddf  10.249.101.48 192.168.170.49 192.168.178.48 nnn fgdddddddddg  10.249.101.49 192.168.170.50 192.168.178.49 ooo dsc  10.249.101.50 192.168.170.51 192.168.178.50 ppp ewes  10.249.101.51 192.168.170.52 192.168.178.51 qqq jyukmj  10.249.101.52 192.168.170.53 192.168.178.52 rrr thytghyt  10.249.101.53 192.168.170.54 192.168.178.53 sss t55erg  10.249.101.54 192.168.170.55 192.168.178.54 ttt yjthgn  10.249.101.55 192.168.170.56 192.168.178.55 uuu 6ttttttttt5  10.249.101.56 192.168.170.57 192.168.178.56 vvv 5555555555  10.249.101.57 192.168.170.58 192.168.178.57 www 666666666  10.249.101.58 192.168.170.59 192.168.178.58 ggg 77777777777  10.249.101.59 192.168.170.60 192.168.178.59 hhh 888888888888  10.249.101.60 192.168.170.61 192.168.178.60 iii 899999990  10.249.101.61 192.168.170.62 192.168.178.61 jjj 222222  10.249.101.62 192.168.170.63 192.168.178.63 kkk 2222  10.249.101.63 192.168.170.64 192.168.178.64 lll 21313  10.249.101.64 192.168.170.65 192.168.178.65 a aaa  10.249.101.1 192.168.170.2 192.168.178.1 b bbb  10.249.101.2 192.168.170.3 192.168.178.244 c sde  10.249.101.3 192.168.170.4 192.168.178.3 d aaaaaa  10.249.101.4 192.168.170.5 192.168.178.4 e saasas  10.249.101.5 192.168.170.6 192.168.178.5 f sasasaaa  10.249.101.6 192.168.170.7 192.168.178.6 g saasaa  10.249.101.7 192.168.170.8 192.168.178.7 m fred  10.249.101.8 192.168.170.9 192.168.178.8 n dedede  10.249.101.9 192.168.170.10 192.168.178.9 o frfrfrfr  10.249.101.10 192.168.170.11 192.168.178.10 p ede  10.249.101.11 192.168.170.12 192.168.178.11 q iur  10.249.101.12 192.168.170.13 192.168.178.12 r lolo  10.249.101.13 192.168.170.14 192.168.178.13 s loliki  10.249.101.14 192.168.170.15 192.168.178.14 t kujuj  10.249.101.15 192.168.170.16 192.168.178.15 u yhyhy  10.249.101.16 192.168.170.17 192.168.178.16 v grtgt  10.249.101.17 192.168.170.18 192.168.178.17 w rfrfef  10.249.101.18 192.168.170.19 192.168.178.18 x deds  10.249.101.19 192.168.170.20 192.168.178.19 y cdcdcdfr  10.249.101.20 192.168.170.21 192.168.178.20 z gta  10.249.101.21 192.168.170.22 192.168.178.21 aa g67j  10.249.101.22 192.168.170.23 192.168.178.22 bb opok  10.249.101.23 192.168.170.24 192.168.178.23 cc 8k8  10.249.101.24 192.168.170.25 192.168.178.24 dd mmksmd  10.249.101.25 192.168.170.26 192.168.178.25 ee cdksmokv  10.249.101.26 192.168.170.27 192.168.178.26 ff doiew  10.249.101.27 192.168.170.28 192.168.178.27 mm odkoewc  10.249.101.28 192.168.170.29 192.168.178.28 nn ikuku  10.249.101.29 192.168.170.30 192.168.178.29 oo jujujum  10.249.101.30 192.168.170.31 192.168.178.30 pp jyhy  10.249.101.31 192.168.170.32 192.168.178.31 qq nhnh  10.249.101.32 192.168.170.33 192.168.178.32 rr tty65  10.249.101.33 192.168.170.34 192.168.178.33 ss hyju7  10.249.101.34 192.168.170.35 192.168.178.34 tt nnyuy  10.249.101.35 192.168.170.36 192.168.178.35 uu wsedew  10.249.101.36 192.168.170.37 192.168.178.36 vv ceewew  10.249.101.37 192.168.170.38 192.168.178.37 ww edewdew  10.249.101.38 192.168.170.39 192.168.178.38 xx eeeeeeeeeee  10.249.101.39 192.168.170.40 192.168.178.39 yy edwdeweeeeeeeeeee  10.249.101.40 192.168.170.41 192.168.178.40 zz kiu  10.249.101.41 192.168.170.42 192.168.178.41 aaa tyttttttttttt  10.249.101.42 192.168.170.43 192.168.178.42 bbb rrrrrrrrrrrrr  10.249.101.43 192.168.170.44 192.168.178.43 ccc ddddddddddddd  10.249.101.44 192.168.170.45 192.168.178.44 ddd aaaaaaaaaw  10.249.101.45 192.168.170.46 192.168.178.45 eee wwwwwwwwwd  10.249.101.46 192.168.170.47 192.168.178.46 fff eeeeeeeew  10.249.101.47 192.168.170.48 192.168.178.47 mmm dddddddddf  10.249.101.48 192.168.170.49 192.168.178.48 nnn fgdddddddddg  10.249.101.49 192.168.170.50 192.168.178.49 ooo dsc  10.249.101.50 192.168.170.51 192.168.178.50 ppp ewes  10.249.101.51 192.168.170.52 192.168.178.51 qqq jyukmj  10.249.101.52 192.168.170.53 192.168.178.52 rrr thytghyt  10.249.101.53 192.168.170.54 192.168.178.53 sss t55erg  10.249.101.54 192.168.170.55 192.168.178.54 ttt yjthgn  10.249.101.55 192.168.170.56 192.168.178.55 uuu 6ttttttttt5  10.249.101.56 192.168.170.57 192.168.178.56 vvv 5555555555  10.249.101.57 192.168.170.58 192.168.178.57 www 666666666  10.249.101.58 192.168.170.59 192.168.178.58 ggg 77777777777  10.249.101.59 192.168.170.60 192.168.178.59 hhh 888888888888  10.249.101.60 192.168.170.61 192.168.178.60 iii 899999990  10.249.101.61 192.168.170.62 192.168.178.61 jjj 222222  10.249.101.62 192.168.170.63 192.168.178.63 kkk 2222  10.249.101.63 192.168.170.64 192.168.178.64 lll 21313  10.249.101.64 192.168.170.65 192.168.178.65"]
[null,null,null,null,null,null,"          \"xccIpAddress\": \"10.249.101.1\","]
[null,null,null,null,null,null,"          \"vsanIpAddress\": \"192.168.170.2\","]
[null,null,null,null,null,null,"          \"vmotionIpAddress\": \"192.168.178.1\"\r\n  },"]
[null,null,null,null,null,null,"      \"b\": {"]
[null,null,null,null,null,null,"          \"esxiHostname\": \"aaaaa.dev.thinkagile.local\","]
[null,null,null,null,null,null,"          \"xccIpAddress\": \"10.249.101.2\","]
[null,null,null,null,null,null,"          \"vsanIpAddress\": \"192.168.170.3\","]
[null,null,null,null,null,null,"          \"vmotionIpAddress\": \"192.168.178.2\"\r\n  },"]
[null,null,null,null,null,null,"      \"c\": {"]
[null,null,null,null,null,null,"          \"esxiHostname\": \"sde.dev.thinkagile.local\","]
[null,null,null,null,null,null,"          \"xccIpAddress\": \"10.249.101.3\","]
[null,null,null,null,null,null,"          \"vsanIpAddress\": \"192.168.170.4\","]
[null,null,null,null,null,null,"          \"vmotionIpAddress\": \"192.168.178.3\"\r\n  },"]
[null,null,null,null,null,null,"      \"d\": {"]
[null,null,null,null,null,null,"          \"esxiHostname\": \"aaaaaa.dev.thinkagile.local\","]
[null,null,null,null,null,null,"          \"xccIpAddress\": \"10.249.101.4\","]
[null,null,null,null,null,null,"          \"vsanIpAddress\": \"192.168.170.5\","]
[null,null,null,null,null,null,"          \"vmotionIpAddress\": \"192.168.178.4\"\r\n  },"]
[null,null,null,null,null,null,"      \"e\": {"]
[null,null,null,null,null,null,"          \"esxiHostname\": \"saasas.dev.thinkagile.local\","]
[null,null,null,null,null,null,"          \"xccIpAddress\": \"10.249.101.5\","]
[null,null,null,null,null,null,"          \"vsanIpAddress\": \"192.168.170.6\","]
[null,null,null,null,null,null,"          \"vmotionIpAddress\": \"192.168.178.5\"\r\n  },"]
[null,null,null,null,null,null,"      \"f\": {"]
[null,null,null,null,null,null,"          \"esxiHostname\": \"sasasaaa.dev.thinkagile.local\","]
[null,null,null,null,null,null,"          \"xccIpAddress\": \"10.249.101.6\","]
[null,null,null,null,null,null,"          \"vsanIpAddress\": \"192.168.170.7\","]
[null,null,null,null,null,null,"          \"vmotionIpAddress\": \"192.168.178.6\"\r\n  },"]
[null,null,null,null,null,null,"      \"g\": {"]
[null,null,null,null,null,null,"          \"esxiHostname\": \"saasaa.dev.thinkagile.local\","]
[null,null,null,null,null,null,"          \"xccIpAddress\": \"10.249.101.7\","]
[null,null,null,null,null,null,"          \"vsanIpAddress\": \"192.168.170.8\","]
[null,null,null,null,null,null,"          \"vmotionIpAddress\": \"192.168.178.7\"\r\n  },"]
[null,null,null,null,null,null,"      \"m\": {"]
[null,null,null,null,null,null,"          \"esxiHostname\": \"fred.dev.thinkagile.local\","]
[null,null,null,null,null,null,"          \"xccIpAddress\": \"10.249.101.8\","]
[null,null,null,null,null,null,"          \"vsanIpAddress\": \"192.168.170.9\","]
[null,null,null,null,null,null,"          \"vmotionIpAddress\": \"192.168.178.8\"\r\n  },"]
[null,null,null,null,null,null,"      \"n\": {"]
[null,null,null,null,null,null,"          \"esxiHostname\": \"dedede.dev.thinkagile.local\","]
[null,null,null,null,null,null,"          \"xccIpAddress\": \"10.249.101.9\","]
[null,null,null,null,null,null,"          \"vsanIpAddress\": \"192.168.170.10\","]
[null,null,null,null,null,null,"          \"vmotionIpAddress\": \"192.168.178.9\"\r\n  },"]
[null,null,null,null,null,null,"      \"o\": {"]
[null,null,null,null,null,null,"          \"esxiHostname\": \"frfrfrfr.dev.thinkagile.local\","]
[null,null,null,null,null,null,"          \"xccIpAddress\": \"10.249.101.10\","]
[null,null,null,null,null,null,"          \"vsanIpAddress\": \"192.168.170.11\","]
[null,null,null,null,null,null,"          \"vmotionIpAddress\": \"192.168.178.10\"\r\n  },"]
[null,null,null,null,null,null,"      \"p\": {"]
[null,null,null,null,null,null,"          \"esxiHostname\": \"ede.dev.thinkagile.local\","]
[null,null,null,null,null,null,"          \"xccIpAddress\": \"10.249.101.11\","]
[null,null,null,null,null,null,"          \"vsanIpAddress\": \"192.168.170.12\","]
[null,null,null,null,null,null,"          \"vmotionIpAddress\": \"192.168.178.11\"\r\n  },"]
[null,null,null,null,null,null,"      \"q\": {"]
[null,null,null,null,null,null,"          \"esxiHostname\": \"iur.dev.thinkagile.local\","]
[null,null,null,null,null,null,"          \"xccIpAddress\": \"10.249.101.12\","]
[null,null,null,null,null,null,"          \"vsanIpAddress\": \"192.168.170.13\","]
[null,null,null,null,null,null,"          \"vmotionIpAddress\": \"192.168.178.12\"\r\n  },"]
[null,null,null,null,null,null,"      \"r\": {"]
[null,null,null,null,null,null,"          \"esxiHostname\": \"lolo.dev.thinkagile.local\","]
[null,null,null,null,null,null,"          \"xccIpAddress\": \"10.249.101.13\","]
[null,null,null,null,null,null,"          \"vsanIpAddress\": \"192.168.170.14\","]
[null,null,null,null,null,null,"          \"vmotionIpAddress\": \"192.168.178.13\"\r\n  },"]
[null,null,null,null,null,null,"      \"s\": {"]
[null,null,null,null,null,null,"          \"esxiHostname\": \"loliki.dev.thinkagile.local\","]
[null,null,null,null,null,null,"          \"xccIpAddress\": \"10.249.101.14\","]
[null,null,null,null,null,null,"          \"vsanIpAddress\": \"192.168.170.15\","]
[null,null,null,null,null,null,"          \"vmotionIpAddress\": \"192.168.178.14\"\r\n  },"]
[null,null,null,null,null,null,"      \"t\": {"]
[null,null,null,null,null,null,"          \"esxiHostname\": \"kujuj.dev.thinkagile.local\","]
[null,null,null,null,null,null,"          \"xccIpAddress\": \"10.249.101.15\","]
[null,null,null,null,null,null,"          \"vsanIpAddress\": \"192.168.170.16\","]
[null,null,null,null,null,null,"          \"vmotionIpAddress\": \"192.168.178.15\"\r\n  },"]
[null,null,null,null,null,null,"      \"u\": {"]
[null,null,null,null,null,null,"          \"esxiHostname\": \"yhyhy.dev.thinkagile.local\","]
[null,null,null,null,null,null,"          \"xccIpAddress\": \"10.249.101.16\","]
[null,null,null,null,null,null,"          \"vsanIpAddress\": \"192.168.170.17\","]
[null,null,null,null,null,null,"          \"vmotionIpAddress\": \"192.168.178.16\"\r\n  },"]
[null,null,null,null,null,null,"      \"v\": {"]
[null,null,null,null,null,null,"          \"esxiHostname\": \"grtgt.dev.thinkagile.local\","]
[null,null,null,null,null,null,"          \"xccIpAddress\": \"10.249.101.17\","]
[null,null,null,null,null,null,"          \"vsanIpAddress\": \"192.168.170.18\","]
[null,null,null,null,null,null,"          \"vmotionIpAddress\": \"192.168.178.17\"\r\n  },"]
[null,null,null,null,null,null,"      \"w\": {"]
[null,null,null,null,null,null,"          \"esxiHostname\": \"rfrfef.dev.thinkagile.local\","]
[null,null,null,null,null,null,"          \"xccIpAddress\": \"10.249.101.18\","]
[null,null,null,null,null,null,"          \"vsanIpAddress\": \"192.168.170.19\","]
[null,null,null,null,null,null,"          \"vmotionIpAddress\": \"192.168.178.18\"\r\n  },"]
[null,null,null,null,null,null,"      \"x\": {"]
[null,null,null,null,null,null,"          \"esxiHostname\": \"deds.dev.thinkagile.local\","]
[null,null,null,null,null,null,"          \"xccIpAddress\": \"10.249.101.19\","]
[null,null,null,null,null,null,"          \"vsanIpAddress\": \"192.168.170.20\","]
[null,null,null,null,null,null,"          \"vmotionIpAddress\": \"192.168.178.19\"\r\n  },"]
[null,null,null,null,null,null,"      \"y\": {"]
[null,null,null,null,null,null,"          \"esxiHostname\": \"cdcdcdfr.dev.thinkagile.local\","]
[null,null,null,null,null,null,"          \"xccIpAddress\": \"10.249.101.20\","]
[null,null,null,null,null,null,"          \"vsanIpAddress\": \"192.168.170.21\","]
[null,null,null,null,null,null,"          \"vmotionIpAddress\": \"192.168.178.20\"\r\n  },"]
[null,null,null,null,null,null,"      \"z\": {"]
[null,null,null,null,null,null,"          \"esxiHostname\": \"gta.dev.thinkagile.local\","]
[null,null,null,null,null,null,"          \"xccIpAddress\": \"10.249.101.21\","]
[null,null,null,null,null,null,"          \"vsanIpAddress\": \"192.168.170.22\","]
[null,null,null,null,null,null,"          \"vmotionIpAddress\": \"192.168.178.21\"\r\n  },"]
[null,null,null,null,null,null,"      \"aa\": {"]
[null,null,null,null,null,null,"          \"esxiHostname\": \"g67j.dev.thinkagile.local\","]
[null,null,null,null,null,null,"          \"xccIpAddress\": \"10.249.101.22\","]
[null,null,null,null,null,null,"          \"vsanIpAddress\": \"192.168.170.23\","]
[null,null,null,null,null,null,"          \"vmotionIpAddress\": \"192.168.178.22\"\r\n  },"]
[null,null,null,null,null,null,"      \"bb\": {"]
[null,null,null,null,null,null,"          \"esxiHostname\": \"opok.dev.thinkagile.local\","]
[null,null,null,null,null,null,"          \"xccIpAddress\": \"10.249.101.23\","]
[null,null,null,null,null,null,"          \"vsanIpAddress\": \"192.168.170.24\","]
[null,null,null,null,null,null,"          \"vmotionIpAddress\": \"192.168.178.23\"\r\n  },"]
[null,null,null,null,null,null,"      \"cc\": {"]
[null,null,null,null,null,null,"          \"esxiHostname\": \"8k8.dev.thinkagile.local\","]
[null,null,null,null,null,null,"          \"xccIpAddress\": \"10.249.101.24\","]
[null,null,null,null,null,null,"          \"vsanIpAddress\": \"192.168.170.25\","]
[null,null,null,null,null,null,"          \"vmotionIpAddress\": \"192.168.178.24\"\r\n  },"]
[null,null,null,null,null,null,"      \"dd\": {"]
[null,null,null,null,null,null,"          \"esxiHostname\": \"mmksmd.dev.thinkagile.local\","]
[null,null,null,null,null,null,"          \"xccIpAddress\": \"10.249.101.25\","]
[null,null,null,null,null,null,"          \"vsanIpAddress\": \"192.168.170.26\","]
[null,null,null,null,null,null,"          \"vmotionIpAddress\": \"192.168.178.25\"\r\n  },"]
[null,null,null,null,null,null,"      \"ee\": {"]
[null,null,null,null,null,null,"          \"esxiHostname\": \"cdksmokv.dev.thinkagile.local\","]
[null,null,null,null,null,null,"          \"xccIpAddress\": \"10.249.101.26\","]
[null,null,null,null,null,null,"          \"vsanIpAddress\": \"192.168.170.27\","]
[null,null,null,null,null,null,"          \"vmotionIpAddress\": \"192.168.178.26\"\r\n  },"]
[null,null,null,null,null,null,"      \"ff\": {"]
[null,null,null,null,null,null,"          \"esxiHostname\": \"doiew.dev.thinkagile.local\","]
[null,null,null,null,null,null,"          \"xccIpAddress\": \"10.249.101.27\","]
[null,null,null,null,null,null,"          \"vsanIpAddress\": \"192.168.170.28\","]
[null,null,null,null,null,null,"          \"vmotionIpAddress\": \"192.168.178.27\"\r\n  },"]
[null,null,null,null,null,null,"      \"mm\": {"]
[null,null,null,null,null,null,"          \"esxiHostname\": \"odkoewc.dev.thinkagile.local\","]
[null,null,null,null,null,null,"          \"xccIpAddress\": \"10.249.101.28\","]
[null,null,null,null,null,null,"          \"vsanIpAddress\": \"192.168.170.29\","]
[null,null,null,null,null,null,"          \"vmotionIpAddress\": \"192.168.178.28\"\r\n  },"]
[null,null,null,null,null,null,"      \"nn\": {"]
[null,null,null,null,null,null,"          \"esxiHostname\": \"ikuku.dev.thinkagile.local\","]
[null,null,null,null,null,null,"          \"xccIpAddress\": \"10.249.101.29\","]
[null,null,null,null,null,null,"          \"vsanIpAddress\": \"192.168.170.30\","]
[null,null,null,null,null,null,"          \"vmotionIpAddress\": \"192.168.178.29\"\r\n  },"]
[null,null,null,null,null,null,"      \"oo\": {"]
[null,null,null,null,null,null,"          \"esxiHostname\": \"jujujum.dev.thinkagile.local\","]
[null,null,null,null,null,null,"          \"xccIpAddress\": \"10.249.101.30\","]
[null,null,null,null,null,null,"          \"vsanIpAddress\": \"192.168.170.31\","]
[null,null,null,null,null,null,"          \"vmotionIpAddress\": \"192.168.178.30\"\r\n  },"]
[null,null,null,null,null,null,"      \"pp\": {"]
[null,null,null,null,null,null,"          \"esxiHostname\": \"jyhy.dev.thinkagile.local\","]
[null,null,null,null,null,null,"          \"xccIpAddress\": \"10.249.101.31\","]
[null,null,null,null,null,null,"          \"vsanIpAddress\": \"192.168.170.32\","]
[null,null,null,null,null,null,"          \"vmotionIpAddress\": \"192.168.178.31\"\r\n  },"]
[null,null,null,null,null,null,"      \"qq\": {"]
[null,null,null,null,null,null,"          \"esxiHostname\": \"nhnh.dev.thinkagile.local\","]
[null,null,null,null,null,null,"          \"xccIpAddress\": \"10.249.101.32\","]
[null,null,null,null,null,null,"          \"vsanIpAddress\": \"192.168.170.33\","]
[null,null,null,null,null,null,"          \"vmotionIpAddress\": \"192.168.178.32\"\r\n  },"]
[null,null,null,null,null,null,"      \"rr\": {"]
[null,null,null,null,null,null,"          \"esxiHostname\": \"tty65.dev.thinkagile.local\","]
[null,null,null,null,null,null,"          \"xccIpAddress\": \"10.249.101.33\","]
[null,null,null,null,null,null,"          \"vsanIpAddress\": \"192.168.170.34\","]
[null,null,null,null,null,null,"          \"vmotionIpAddress\": \"192.168.178.33\"\r\n  },"]
[null,null,null,null,null,null,"      \"ss\": {"]
[null,null,null,null,null,null,"          \"esxiHostname\": \"hyju7.dev.thinkagile.local\","]
[null,null,null,null,null,null,"          \"xccIpAddress\": \"10.249.101.34\","]
[null,null,null,null,null,null,"          \"vsanIpAddress\": \"192.168.170.35\","]
[null,null,null,null,null,null,"          \"vmotionIpAddress\": \"192.168.178.34\"\r\n  },"]
[null,null,null,null,null,null,"      \"tt\": {"]
[null,null,null,null,null,null,"          \"esxiHostname\": \"nnyuy.dev.thinkagile.local\","]
[null,null,null,null,null,null,"          \"xccIpAddress\": \"10.249.101.35\","]
[null,null,null,null,null,null,"          \"vsanIpAddress\": \"192.168.170.36\","]
[null,null,null,null,null,null,"          \"vmotionIpAddress\": \"192.168.178.35\"\r\n  },"]
[null,null,null,null,null,null,"      \"uu\": {"]
[null,null,null,null,null,null,"          \"esxiHostname\": \"wsedew.dev.thinkagile.local\","]
[null,null,null,null,null,null,"          \"xccIpAddress\": \"10.249.101.36\","]
[null,null,null,null,null,null,"          \"vsanIpAddress\": \"192.168.170.37\","]
[null,null,null,null,null,null,"          \"vmotionIpAddress\": \"192.168.178.36\"\r\n  },"]
[null,null,null,null,null,null,"      \"vv\": {"]
[null,null,null,null,null,null,"          \"esxiHostname\": \"ceewew.dev.thinkagile.local\","]
[null,null,null,null,null,null,"          \"xccIpAddress\": \"10.249.101.37\","]
[null,null,null,null,null,null,"          \"vsanIpAddress\": \"192.168.170.38\","]
[null,null,null,null,null,null,"          \"vmotionIpAddress\": \"192.168.178.37\"\r\n  },"]
[null,null,null,null,null,null,"      \"ww\": {"]
[null,null,null,null,null,null,"          \"esxiHostname\": \"edewdew.dev.thinkagile.local\","]
[null,null,null,null,null,null,"          \"xccIpAddress\": \"10.249.101.38\","]
[null,null,null,null,null,null,"          \"vsanIpAddress\": \"192.168.170.39\","]
[null,null,null,null,null,null,"          \"vmotionIpAddress\": \"192.168.178.38\"\r\n  },"]
[null,null,null,null,null,null,"      \"xx\": {"]
[null,null,null,null,null,null,"          \"esxiHostname\": \"eeeeeeeeeee.dev.thinkagile.local\","]
[null,null,null,null,null,null,"          \"xccIpAddress\": \"10.249.101.39\","]
[null,null,null,null,null,null,"          \"vsanIpAddress\": \"192.168.170.40\","]
[null,null,null,null,null,null,"          \"vmotionIpAddress\": \"192.168.178.39\"\r\n  },"]
[null,null,null,null,null,null,"      \"yy\": {"]
[null,null,null,null,null,null,"          \"esxiHostname\": \"edwdeweeeeeeeeeee.dev.thinkagile.local\","]
[null,null,null,null,null,null,"          \"xccIpAddress\": \"10.249.101.40\","]
[null,null,null,null,null,null,"          \"vsanIpAddress\": \"192.168.170.41\","]
[null,null,null,null,null,null,"          \"vmotionIpAddress\": \"192.168.178.40\"\r\n  },"]
[null,null,null,null,null,null,"      \"zz\": {"]
[null,null,null,null,null,null,"          \"esxiHostname\": \"kiu.dev.thinkagile.local\","]
[null,null,null,null,null,null,"          \"xccIpAddress\": \"10.249.101.41\","]
[null,null,null,null,null,null,"          \"vsanIpAddress\": \"192.168.170.42\","]
[null,null,null,null,null,null,"          \"vmotionIpAddress\": \"192.168.178.41\"\r\n  },"]
[null,null,null,null,null,null,"      \"aaa\": {"]
[null,null,null,null,null,null,"          \"esxiHostname\": \"tyttttttttttt.dev.thinkagile.local\","]
[null,null,null,null,null,null,"          \"xccIpAddress\": \"10.249.101.42\","]
[null,null,null,null,null,null,"          \"vsanIpAddress\": \"192.168.170.43\","]
[null,null,null,null,null,null,"          \"vmotionIpAddress\": \"192.168.178.42\"\r\n  },"]
[null,null,null,null,null,null,"      \"bbb\": {"]
[null,null,null,null,null,null,"          \"esxiHostname\": \"rrrrrrrrrrrrr.dev.thinkagile.local\","]
[null,null,null,null,null,null,"          \"xccIpAddress\": \"10.249.101.43\","]
[null,null,null,null,null,null,"          \"vsanIpAddress\": \"192.168.170.44\","]
[null,null,null,null,null,null,"          \"vmotionIpAddress\": \"192.168.178.43\"\r\n  },"]
[null,null,null,null,null,null,"      \"ccc\": {"]
[null,null,null,null,null,null,"          \"esxiHostname\": \"ddddddddddddd.dev.thinkagile.local\","]
[null,null,null,null,null,null,"          \"xccIpAddress\": \"10.249.101.44\","]
[null,null,null,null,null,null,"          \"vsanIpAddress\": \"192.168.170.45\","]
[null,null,null,null,null,null,"          \"vmotionIpAddress\": \"192.168.178.44\"\r\n  },"]
[null,null,null,null,null,null,"      \"ddd\": {"]
[null,null,null,null,null,null,"          \"esxiHostname\": \"aaaaaaaaaw.dev.thinkagile.local\","]
[null,null,null,null,null,null,"          \"xccIpAddress\": \"10.249.101.45\","]
[null,null,null,null,null,null,"          \"vsanIpAddress\": \"192.168.170.46\","]
[null,null,null,null,null,null,"          \"vmotionIpAddress\": \"192.168.178.45\"\r\n  },"]
[null,null,null,null,null,null,"      \"eee\": {"]
[null,null,null,null,null,null,"          \"esxiHostname\": \"wwwwwwwwwd.dev.thinkagile.local\","]
[null,null,null,null,null,null,"          \"xccIpAddress\": \"10.249.101.46\","]
[null,null,null,null,null,null,"          \"vsanIpAddress\": \"192.168.170.47\","]
[null,null,null,null,null,null,"          \"vmotionIpAddress\": \"192.168.178.46\"\r\n  },"]
[null,null,null,null,null,null,"      \"fff\": {"]
[null,null,null,null,null,null,"          \"esxiHostname\": \"eeeeeeeew.dev.thinkagile.local\","]
[null,null,null,null,null,null,"          \"xccIpAddress\": \"10.249.101.47\","]
[null,null,null,null,null,null,"          \"vsanIpAddress\": \"192.168.170.48\","]
[null,null,null,null,null,null,"          \"vmotionIpAddress\": \"192.168.178.47\"\r\n  },"]
[null,null,null,null,null,null,"      \"mmm\": {"]
[null,null,null,null,null,null,"          \"esxiHostname\": \"dddddddddf.dev.thinkagile.local\","]
[null,null,null,null,null,null,"          \"xccIpAddress\": \"10.249.101.48\","]
[null,null,null,null,null,null,"          \"vsanIpAddress\": \"192.168.170.49\","]
[null,null,null,null,null,null,"          \"vmotionIpAddress\": \"192.168.178.48\"\r\n  },"]
[null,null,null,null,null,null,"      \"nnn\": {"]
[null,null,null,null,null,null,"          \"esxiHostname\": \"fgdddddddddg.dev.thinkagile.local\","]
[null,null,null,null,null,null,"          \"xccIpAddress\": \"10.249.101.49\","]
[null,null,null,null,null,null,"          \"vsanIpAddress\": \"192.168.170.50\","]
[null,null,null,null,null,null,"          \"vmotionIpAddress\": \"192.168.178.49\"\r\n  },"]
[null,null,null,null,null,null,"      \"ooo\": {"]
[null,null,null,null,null,null,"          \"esxiHostname\": \"dsc.dev.thinkagile.local\","]
[null,null,null,null,null,null,"          \"xccIpAddress\": \"10.249.101.50\","]
[null,null,null,null,null,null,"          \"vsanIpAddress\": \"192.168.170.51\","]
[null,null,null,null,null,null,"          \"vmotionIpAddress\": \"192.168.178.50\"\r\n  },"]
[null,null,null,null,null,null,"      \"ppp\": {"]
[null,null,null,null,null,null,"          \"esxiHostname\": \"ewes.dev.thinkagile.local\","]
[null,null,null,null,null,null,"          \"xccIpAddress\": \"10.249.101.51\","]
[null,null,null,null,null,null,"          \"vsanIpAddress\": \"192.168.170.52\","]
[null,null,null,null,null,null,"          \"vmotionIpAddress\": \"192.168.178.51\"\r\n  },"]
[null,null,null,null,null,null,"      \"qqq\": {"]
[null,null,null,null,null,null,"          \"esxiHostname\": \"jyukmj.dev.thinkagile.local\","]
[null,null,null,null,null,null,"          \"xccIpAddress\": \"10.249.101.52\","]
[null,null,null,null,null,null,"          \"vsanIpAddress\": \"192.168.170.53\","]
[null,null,null,null,null,null,"          \"vmotionIpAddress\": \"192.168.178.52\"\r\n  },"]
[null,null,null,null,null,null,"      \"rrr\": {"]
[null,null,null,null,null,null,"          \"esxiHostname\": \"thytghyt.dev.thinkagile.local\","]
[null,null,null,null,null,null,"          \"xccIpAddress\": \"10.249.101.53\","]
[null,null,null,null,null,null,"          \"vsanIpAddress\": \"192.168.170.54\","]
[null,null,null,null,null,null,"          \"vmotionIpAddress\": \"192.168.178.53\"\r\n  },"]
[null,null,null,null,null,null,"      \"sss\": {"]
[null,null,null,null,null,null,"          \"esxiHostname\": \"t55erg.dev.thinkagile.local\","]
[null,null,null,null,null,null,"          \"xccIpAddress\": \"10.249.101.54\","]
[null,null,null,null,null,null,"          \"vsanIpAddress\": \"192.168.170.55\","]
[null,null,null,null,null,null,"          \"vmotionIpAddress\": \"192.168.178.54\"\r\n  },"]
[null,null,null,null,null,null,"      \"ttt\": {"]
[null,null,null,null,null,null,"          \"esxiHostname\": \"yjthgn.dev.thinkagile.local\","]
[null,null,null,null,null,null,"          \"xccIpAddress\": \"10.249.101.55\","]
[null,null,null,null,null,null,"          \"vsanIpAddress\": \"192.168.170.56\","]
[null,null,null,null,null,null,"          \"vmotionIpAddress\": \"192.168.178.55\"\r\n  },"]
[null,null,null,null,null,null,"      \"uuu\": {"]
[null,null,null,null,null,null,"          \"esxiHostname\": \"6ttttttttt5.dev.thinkagile.local\","]
[null,null,null,null,null,null,"          \"xccIpAddress\": \"10.249.101.56\","]
[null,null,null,null,null,null,"          \"vsanIpAddress\": \"192.168.170.57\","]
[null,null,null,null,null,null,"          \"vmotionIpAddress\": \"192.168.178.56\"\r\n  },"]
[null,null,null,null,null,null,"      \"vvv\": {"]
[null,null,null,null,null,null,"          \"esxiHostname\": \"5555555555.dev.thinkagile.local\","]
[null,null,null,null,null,null,"          \"xccIpAddress\": \"10.249.101.57\","]
[null,null,null,null,null,null,"          \"vsanIpAddress\": \"192.168.170.58\","]
[null,null,null,null,null,null,"          \"vmotionIpAddress\": \"192.168.178.57\"\r\n  },"]
[null,null,null,null,null,null,"      \"www\": {"]
[null,null,null,null,null,null,"          \"esxiHostname\": \"666666666.dev.thinkagile.local\","]
[null,null,null,null,null,null,"          \"xccIpAddress\": \"10.249.101.58\","]
[null,null,null,null,null,null,"          \"vsanIpAddress\": \"192.168.170.59\","]
[null,null,null,null,null,null,"          \"vmotionIpAddress\": \"192.168.178.58\"\r\n  },"]
[null,null,null,null,null,null,"      \"ggg\": {"]
[null,null,null,null,null,null,"          \"esxiHostname\": \"77777777777.dev.thinkagile.local\","]
[null,null,null,null,null,null,"          \"xccIpAddress\": \"10.249.101.59\","]
[null,null,null,null,null,null,"          \"vsanIpAddress\": \"192.168.170.60\","]
[null,null,null,null,null,null,"          \"vmotionIpAddress\": \"192.168.178.59\"\r\n  },"]
[null,null,null,null,null,null,"      \"hhh\": {"]
[null,null,null,null,null,null,"          \"esxiHostname\": \"888888888888.dev.thinkagile.local\","]
[null,null,null,null,null,null,"          \"xccIpAddress\": \"10.249.101.60\","]
[null,null,null,null,null,null,"          \"vsanIpAddress\": \"192.168.170.61\","]
[null,null,null,null,null,null,"          \"vmotionIpAddress\": \"192.168.178.60\"\r\n  },"]
[null,null,null,null,null,null,"      \"iii\": {"]
[null,null,null,null,null,null,"          \"esxiHostname\": \"899999990.dev.thinkagile.local\","]
[null,null,null,null,null,null,"          \"xccIpAddress\": \"10.249.101.61\","]
[null,null,null,null,null,null,"          \"vsanIpAddress\": \"192.168.170.62\","]
[null,null,null,null,null,null,"          \"vmotionIpAddress\": \"192.168.178.61\"\r\n  },"]
[null,null,null,null,null,null,"      \"jjj\": {"]
[null,null,null,null,null,null,"          \"esxiHostname\": \"222222.dev.thinkagile.local\","]
[null,null,null,null,null,null,"          \"xccIpAddress\": \"10.249.101.62\","]
[null,null,null,null,null,null,"          \"vsanIpAddress\": \"192.168.170.63\","]
[null,null,null,null,null,null,"          \"vmotionIpAddress\": \"192.168.178.63\"\r\n  },"]
[null,null,null,null,null,null,"      \"kkk\": {"]
[null,null,null,null,null,null,"          \"esxiHostname\": \"2222.dev.thinkagile.local\","]
[null,null,null,null,null,null,"          \"xccIpAddress\": \"10.249.101.63\","]
[null,null,null,null,null,null,"          \"vsanIpAddress\": \"192.168.170.64\","]
[null,null,null,null,null,null,"          \"vmotionIpAddress\": \"192.168.178.64\"\r\n  },"]
[null,null,null,null,null,null,"      \"lll\": {"]
[null,null,null,null,null,null,"          \"esxiHostname\": \"21313.dev.thinkagile.local\","]
[null,null,null,null,null,null,"          \"xccIpAddress\": \"10.249.101.64\","]
[null,null,null,null,null,null,"          \"vsanIpAddress\": \"192.168.170.65\","]
[null,null,null,null,null,null,"          \"vmotionIpAddress\": \"192.168.178.65\"\r\n  }"]
[null,null,null,null,null,null," }\r\n}"]